Workbook

Sheet Disclaimer
B2: Disclaimer
B3: =CELL("filename",B2) -> C:\&Temp Files\SpecMaker 2025 Plus\[SpecMaker 2025 Plus.xlsm]Disclaimer
B4: Spreadsheet prepared by Dr. Gordon Gilmore
B5: 01/08/2009 updated 7/1/2024
B7: These worksheets are provided in good faith for for the convenience of gamma spectrometrists and readers of Practical Gamma-Ray Spectrometry.
B8: The author cannot be held responsible for any inconvenience or loss of any kind arising from the use of these spreadsheets or the conclusions drawn from them.

Sheet Control
B2: SpecMaker - Create Test Spectrum
B3: =CELL("filename",B2) -> C:\&Temp Files\SpecMaker 2025 Plus\[SpecMaker 2025 Plus.xlsm]Control
B4: Spreadsheet prepared by Dr. Gordon Gilmore
B6: Control Data | G6: Peak List | P6: Number of Peaks: | Q6: =COUNT(H9:H58) -> 0 | S6: RMS diff: | T6: =SQRT(SUMSQ(T9:T58)/Q6) -> 
B7: Spectrum Size: | C7: =VLOOKUP(D43,$C$45:$D$49,2) -> 8192 | D7: channels | H7: Energy | I7: Peak Area | J7: Position | K7: FWHM | L7: Peak width | P7: Created
B8: Maximum Energy: | C8: =IF(C21<>"",$C$20+C7*$C$21+$C$22*C7^2,"") -> 2428.431512 | D8: keV | H8: (keV) | I8: (counts) | J8: (Channel) | K8: (keV) | L8: (Channels) | M8: sigma | N8: ymax | O8: 2s^2 | P8: Centroid | Q8: Count | R8: Midpt | S8: halfwidth | T8: Cent diffs
B9: Background at Channel 2: | C9: 2000 | D9: counts | G9: 1 | J9: =IF(H9<>"",IF(H9>$C$8,"OFF SCALE",1/((-$C$21-SQRT($C$21^2-4*($C$20-H9)*$C$22))/(2*($C$20-H9)))),"") ->  | K9: =IF(H9<>"",IF(H9<>511,($C$24*H9+$C$23+H9^2*$C$25),$C$50*$C$24*H9+$C$23+H9^2*$C$25),"") ->  | L9: =IF(H9<>"",ROUND(2*K9*$C$27/$C$21/2.355,0),"") ->  | M9: =K9/2.355/$C$21 ->  | N9: =I9/(M9*SQRT(2*PI())) ->  | O9: =2*M9^2 ->  | R9: 351 | S9: 4 | T9: =IF(P9<>"",P9-J9,"") -> 
B10: =CONCATENATE("Background at Channel ",C7,":") -> Background at Channel 8192: | C10: 2000 | D10: counts | G10: =1+G9 -> 2 | M10: =K10/2.355/$C$21 ->  | N10: =I10/(M10*SQRT(2*PI())) ->  | O10: =2*M10^2 ->  | R10: 469 | S10: 4 | T10: =IF(P10<>"",P10-J10,"") -> 
B11: =IF(C12<>3,"Background Gradient:", "Decay Factor:") -> Background Gradient: | C11: =IF(C12<>3,(C10-C9)/(C7-2),-LN(C10/C9)/C7) -> 0 | G11: =1+G10 -> 3 | R11: 621 | S11: 4 | T11: =IF(P11<>"",P11-J11,"") -> 
C12: 5 | G12: 4 | R12: 756 | S12: 4
B13: OR | G13: 5 | R13: 890 | S13: 4
B14: Background Spectrum Filename: | E14: .CHN | G14: 6 | R14: 1059 | S14: 4
C15: =IF(C14<>"","Mathematical Continuum Disabled","") ->  | G15: 7 | R15: 1177 | S15: 5
B16: Working Folder: | C16: c:\&temp files | G16: 8 | R16: 1295 | S16: 5
G17: 9 | R17: 1430 | S17: 5
G18: 10 | R18: 1548 | S18: 5
B19: Calibration Data | G19: 11 | J19: =IF(H19<>"",IF(H19>$C$8,"OFF SCALE",1/((-$C$21-SQRT($C$21^2-4*($C$20-H19)*$C$22))/(2*($C$20-H19)))),"") ->  | K19: =IF(H19<>"",IF(H19<>511,($C$24*H19+$C$23+H19^2*$C$25),$C$50*$C$24*H19+$C$23+H19^2*$C$25),"") ->  | L19: =IF(H19<>"",ROUND(2*K19*$C$27/$C$21/2.355,0),"") ->  | R19: 1699 | S19: 5
B20: Energy Intercept: | C20: -4.090471268 | D20: keV | G20: =1+G19 -> 12 | J20: =IF(H20<>"",IF(H20>$C$8,"OFF SCALE",1/((-$C$21-SQRT($C$21^2-4*($C$20-H20)*$C$22))/(2*($C$20-H20)))),"") ->  | R20: 1834 | S20: 5
B21: Energy scale: | C21: 0.2965469956 | D21: keV/ch | G21: 13 | R21: 1952 | S21: 5
B22: Energy Quad Factor: | C22: 4.781774976e-08 | D22: keV/ch2 | G22: 14 | R22: 2104 | S22: 5
B23: Width Intercept: | C23: 0.763579905 | D23: keV | G23: 15 | R23: 2272 | S23: 6
B24: Width scale: | C24: 0.0009132531122 | D24: keV/ch | G24: 16 | R24: 2373 | S24: 6
B25: Width Quad Factor: | C25: -9.431559533e-08 | D25: keV/ch2 | G25: 17 | M25: =K25/2.355/$C$21 ->  | N25: =I25/(M25*SQRT(2*PI())) ->  | O25: =2*M25^2 ->  | R25: 2508 | S25: 6
B26: Peak Coverage: | C26: 0.995 | G26: 18 | R26: 2643 | S26: 6
B27: Full-width: | C27: =NORMSINV((1+C26)/2) -> 2.807033768 | D27: Std. Unc. | G27: 19 | R27: 2778 | S27: 6
G28: 20 | R28: 2946 | S28: 6
B29: Spectrum Information | G29: 21 | R29: 3047 | S29: 6
B30: Live time of Count: | C30: 200000 | D30: seconds | G30: 22 | R30: 3182 | S30: 6
B31: Output Spectrum Filename: | E31: .CHN | G31: 23 | R31: 3317 | S31: 7
B32: Spectrum Description: | G32: 24 | R32: 3451 | S32: 7
G33: 25 | R33: 3620 | S33: 7
B34: For Interest | G34: 26 | R34: 3721 | S34: 7
C35: This Detector Resolution at 1332.5 keV: | D35: =C23+C24*1332.5+1332.5^2*C25 -> 1.813027032 | E35: keV | G35: 27 | R35: 3856 | S35: 7
C36: Typical Resolution at 1332.5 keV: | D36: 1.8 | E36: keV | G36: 28 | R36: 3990 | S36: 7
B37: Resolution at this keV: | C37: 511 | D37: =IF(C37<>511,C23+C24*C37+C37^2*C25,C50*(C23+C24*C37+C37^2*C25)) -> 2.411248926 | E37: keV | G37: 29 | R37: 4125 | S37: 7
C38: =CONCATENATE("Peak Width at ",C37," keV:") -> Peak Width at 511 keV: | D38: =IF(C37<>"",ROUND(2*D37*$C$27/$C$21/2.355,0),"") -> 19 | E38: ch | G38: 30 | R38: 4260 | S38: 7
C39: =CONCATENATE("Peak Position at ",C37, " keV:") -> Peak Position at 511 keV: | D39: =IF(C37<>"",IF(C37>$C$8,"OFF SCALE",1/((-$C$21-SQRT($C$21^2-4*($C$20-C37)*$C$22))/(2*($C$20-C37)))),"") -> 1736.474461 | E39: ch | G39: 31 | R39: 4394 | S39: 7
C40: =CONCATENATE("Critical Limit at ",C37, " keV:") -> Critical Limit at 511 keV: | D40: =IF(C37<>"",ROUND(1.645*SQRT(VLOOKUP((D39-D38),Spectrum!A2:B8191,2)*(1+D38/10)),0),"") -> 38 | E40: cts | G40: 32 | R40: 4529 | S40: 8
G41: 33 | R41: 4698 | S41: 8
B42: Background Mode | D42: Spec Sizes | G42: 34 | R42: 4799 | S42: 8
D43: 8192 | G43: 35 | R43: 5001 | S43: 8
G44: 36 | R44: 5068 | S44: 8
A45: 1 | B45: Unscattered | C45: 1 | D45: 512 | G45: 37 | R45: 5203 | S45: 8
A46: 2 | B46: Linear | C46: 2 | D46: 1024 | G46: 38 | R46: 5337 | S46: 8
A47: 3 | B47: Exponential | C47: 3 | D47: 2048 | G47: 39 | R47: 5489 | S47: 8
A48: 4 | B48: Linear Flat | C48: 4 | D48: 4096 | G48: 40 | R48: 5606 | S48: 8
A49: 5 | B49: Spectrum | C49: 5 | D49: 8192 | G49: 41 | R49: 5741 | S49: 8
B50: 511 width factor: | C50: 2 | G50: 42 | R50: 5876 | S50: 9
G51: 43 | R51: 6010 | S51: 9
G52: 44 | R52: 6145 | S52: 9
G53: 45 | R53: 6280 | S53: 9
G54: 46 | R54: 6414 | S54: 9
G55: 47 | R55: 6549 | S55: 9
G56: 48 | R56: 6683 | S56: 9
G57: 49 | R57: 6818 | S57: 9
G58: 50 | R58: 6953 | S58: 9

Sheet Spectrum
A1: Channel Number | B1: Original Channel Contents | C1: Scattered Channel Contents | D1: Peak Counts | K1: 31 | L1: =IF(K1<>0,ROUND(K1+NORMSINV(RAND())*SQRT(K1),0)) -> 30 | M1: Channel Energy keV
A2: 2 | B2: 0 | C2: 0 | G2: Format of CHN files | J2: =NOW() -> 2025-03-17T11:53:13.590 | M2: =Control!$C$20+Control!$C$21*A2+Control!$C$22*A2^2 -> -3.497377085
A3: 3 | B3: 0 | C3: 0 | M3: =Control!$C$20+Control!$C$21*A3+Control!$C$22*A3^2 -> -3.20082985
A4: 4 | B4: 0 | C4: 0 | G4: 0 | H4: 2 | I4: Marker | J4: -1 | M4: =Control!$C$20+Control!$C$21*A4+Control!$C$22*A4^2 -> -2.90428252
A5: 5 | B5: 0 | C5: 0 | G5: 2 | H5: 2 | I5: MCA number | J5: 0 | M5: =Control!$C$20+Control!$C$21*A5+Control!$C$22*A5^2 -> -2.607735094
A6: 6 | B6: 0 | C6: 0 | G6: 4 | H6: 2 | I6: Segment | J6: 1 | M6: =Control!$C$20+Control!$C$21*A6+Control!$C$22*A6^2 -> -2.311187572
A7: 7 | B7: 0 | C7: 0 | G7: 6 | H7: 2 | I7: ASCII Seconds | J7: =UPPER(TEXT(NOW(),"ss")) -> 14 | M7: =Control!$C$20+Control!$C$21*A7+Control!$C$22*A7^2 -> -2.014639955
A8: 8 | B8: 0 | C8: 0 | G8: 8 | H8: 4 | I8: RT in 1/50s units | J8: =Control!C30*50 -> 10000000 | K8: =J8/50 -> 200000 | L8: s | M8: =Control!$C$20+Control!$C$21*A8+Control!$C$22*A8^2 -> -1.718092242
A9: 9 | B9: 0 | C9: 0 | G9: 12 | H9: 4 | I9: LT in 1/50s units | J9: =J8 -> 10000000 | K9: =J9/50 -> 200000 | L9: s | M9: =Control!$C$20+Control!$C$21*A9+Control!$C$22*A9^2 -> -1.421544434
A10: 10 | B10: 0 | C10: 0 | G10: 16 | H10: 8 | I10: Date SOC | J10: =TEXT(NOW(),"ddmmmyy") -> 17Mar25 | M10: =Control!$C$20+Control!$C$21*A10+Control!$C$22*A10^2 -> -1.12499653
A11: 11 | B11: 0 | C11: 0 | G11: 24 | H11: 4 | I11: Time SOC | J11: =UPPER(TEXT(NOW(),"hhmmyy")) -> 115325 | M11: =Control!$C$20+Control!$C$21*A11+Control!$C$22*A11^2 -> -0.8284485297
A12: 12 | B12: 0 | C12: 0 | G12: 28 | H12: 2 | I12: Channel offset | J12: 0 | M12: =Control!$C$20+Control!$C$21*A12+Control!$C$22*A12^2 -> -0.5319004343
A13: 13 | B13: 0 | C13: 0 | G13: 30 | H13: 2 | I13: Spectrum Size | J13: =Control!C7 -> 8192 | M13: =Control!$C$20+Control!$C$21*A13+Control!$C$22*A13^2 -> -0.2353522432
A14: 14 | B14: 0 | C14: 0 | M14: =Control!$C$20+Control!$C$21*A14+Control!$C$22*A14^2 -> 0.06119604354
A15: 15 | B15: 0 | C15: 0 | G15: 0 | H15: 2 | I15: Marker | J15: -102 | M15: =Control!$C$20+Control!$C$21*A15+Control!$C$22*A15^2 -> 0.3577444259
A16: 16 | B16: 0 | C16: 0 | G16: 2 | H16: 2 | I16: Reserved | M16: =Control!$C$20+Control!$C$21*A16+Control!$C$22*A16^2 -> 0.6542929039
A17: 17 | B17: 0 | C17: 0 | G17: 4 | H17: 4 | I17: En int | J17: =Control!C20 -> -4.090471268 | K17: keV | M17: =Control!$C$20+Control!$C$21*A17+Control!$C$22*A17^2 -> 0.9508414775
A18: 18 | B18: 0 | C18: 0 | G18: 8 | H18: 4 | I18: En grad | J18: =Control!C21 -> 0.2965469956 | K18: keV/ch | M18: =Control!$C$20+Control!$C$21*A18+Control!$C$22*A18^2 -> 1.247390147
A19: 19 | B19: 0 | C19: 0 | G19: 12 | H19: 4 | I19: En Quad | J19: =Control!C22 -> 4.781774976e-08 | M19: =Control!$C$20+Control!$C$21*A19+Control!$C$22*A19^2 -> 1.543938912
A20: 20 | B20: 0 | C20: 0 | G20: 16 | H20: 4 | I20: Width Int | J20: =Control!C23/J18 -> 2.574903527 | K20: ch | M20: =Control!$C$20+Control!$C$21*A20+Control!$C$22*A20^2 -> 1.840487772
A21: 21 | B21: 0 | C21: 0 | G21: 20 | H21: 4 | I21: Width Grad | J21: =Control!C24 -> 0.0009132531122 | K21: ch/ch | M21: =Control!$C$20+Control!$C$21*A21+Control!$C$22*A21^2 -> 2.137036728
A22: 22 | B22: 0 | C22: 0 | G22: 24 | H22: 4 | I22: Width Quad | J22: =Control!C25*J18 -> -2.796900644e-08 | M22: =Control!$C$20+Control!$C$21*A22+Control!$C$22*A22^2 -> 2.43358578
A23: 23 | B23: 0 | C23: 0 | G23: 256 | H23: 1 | I23: Length of descr | J23: =LEN(J24) -> 26 | M23: =Control!$C$20+Control!$C$21*A23+Control!$C$22*A23^2 -> 2.730134928
A24: 24 | B24: 0 | C24: 0 | G24: 257 | H24: 63 | I24: Det Descr | J24: SpecMaker Virtual Detector | M24: =Control!$C$20+Control!$C$21*A24+Control!$C$22*A24^2 -> 3.026684171
A25: 25 | B25: 0 | C25: 0 | G25: 320 | H25: 1 | I25: Length of descr | J25: =LEN(J26) -> 20 | M25: =Control!$C$20+Control!$C$21*A25+Control!$C$22*A25^2 -> 3.323233509
A26: 26 | B26: 0 | C26: 0 | G26: 321 | H26: 63 | I26: Sample Descr | J26: =IF(Control!C32="","",Control!C32) -> 200kbgd-Recal2+50Pks | M26: =Control!$C$20+Control!$C$21*A26+Control!$C$22*A26^2 -> 3.619782944
A27: 27 | B27: 0 | C27: 0 | G27: 384 | H27: 128 | I27: Reserved | M27: =Control!$C$20+Control!$C$21*A27+Control!$C$22*A27^2 -> 3.916332474
A28: 28 | B28: 0 | C28: 0 | M28: =Control!$C$20+Control!$C$21*A28+Control!$C$22*A28^2 -> 4.212882099
A29: 29 | B29: 0 | C29: 0 | I29: Filepath | J29: =CONCATENATE(Control!C16,"\",Control!C31,".chn") -> c:\&temp files\200kbgd-Recal2+50Pks.chn | M29: =Control!$C$20+Control!$C$21*A29+Control!$C$22*A29^2 -> 4.509431821
A30: 30 | B30: 0 | C30: 0 | I30: Background | J30: =IF(Control!C14<>"",CONCATENATE(Control!C16,"\",Control!C14:C14,".chn"),"") -> c:\&temp files\200kbgd-Recal2.chn | M30: =Control!$C$20+Control!$C$21*A30+Control!$C$22*A30^2 -> 4.805981637
A31: 31 | B31: 0 | C31: 0 | I31: Csv file: | J31: =CONCATENATE(Control!C16,"\",Control!C31,".csv") -> c:\&temp files\200kbgd-Recal2+50Pks.csv | M31: =Control!$C$20+Control!$C$21*A31+Control!$C$22*A31^2 -> 5.10253155
A32: 32 | B32: 0 | C32: 0 | M32: =Control!$C$20+Control!$C$21*A32+Control!$C$22*A32^2 -> 5.399081558
A33: 33 | B33: 0 | C33: 0 | M33: =Control!$C$20+Control!$C$21*A33+Control!$C$22*A33^2 -> 5.695631662
A34: 34 | B34: 0 | C34: 0 | M34: =Control!$C$20+Control!$C$21*A34+Control!$C$22*A34^2 -> 5.992181861
A35: 35 | B35: 0 | C35: 0 | M35: =Control!$C$20+Control!$C$21*A35+Control!$C$22*A35^2 -> 6.288732156
A36: 36 | B36: 0 | C36: 0 | M36: =Control!$C$20+Control!$C$21*A36+Control!$C$22*A36^2 -> 6.585282547
A37: 37 | B37: 0 | C37: 0 | M37: =Control!$C$20+Control!$C$21*A37+Control!$C$22*A37^2 -> 6.881833033
A38: 38 | B38: 0 | C38: 0 | M38: =Control!$C$20+Control!$C$21*A38+Control!$C$22*A38^2 -> 7.178383615
A39: 39 | B39: 0 | C39: 0 | M39: =Control!$C$20+Control!$C$21*A39+Control!$C$22*A39^2 -> 7.474934293
A40: 40 | B40: 0 | C40: 0 | M40: =Control!$C$20+Control!$C$21*A40+Control!$C$22*A40^2 -> 7.771485066
A41: 41 | B41: 0 | C41: 0 | M41: =Control!$C$20+Control!$C$21*A41+Control!$C$22*A41^2 -> 8.068035935
A42: 42 | B42: 0 | C42: 0 | M42: =Control!$C$20+Control!$C$21*A42+Control!$C$22*A42^2 -> 8.3645869
A43: 43 | B43: 0 | C43: 0 | M43: =Control!$C$20+Control!$C$21*A43+Control!$C$22*A43^2 -> 8.66113796
A44: 44 | B44: 0 | C44: 0 | M44: =Control!$C$20+Control!$C$21*A44+Control!$C$22*A44^2 -> 8.957689116
A45: 45 | B45: 0 | C45: 0 | M45: =Control!$C$20+Control!$C$21*A45+Control!$C$22*A45^2 -> 9.254240367
A46: 46 | B46: 0 | C46: 0 | M46: =Control!$C$20+Control!$C$21*A46+Control!$C$22*A46^2 -> 9.550791714
A47: 47 | B47: 0 | C47: 0 | M47: =Control!$C$20+Control!$C$21*A47+Control!$C$22*A47^2 -> 9.847343157
A48: 48 | B48: 0 | C48: 0 | M48: =Control!$C$20+Control!$C$21*A48+Control!$C$22*A48^2 -> 10.1438947
A49: 49 | B49: 0 | C49: 0 | M49: =Control!$C$20+Control!$C$21*A49+Control!$C$22*A49^2 -> 10.44044633
A50: 50 | B50: 0 | C50: 0 | M50: =Control!$C$20+Control!$C$21*A50+Control!$C$22*A50^2 -> 10.73699806
A51: 51 | B51: 0 | C51: 0 | M51: =Control!$C$20+Control!$C$21*A51+Control!$C$22*A51^2 -> 11.03354988
A52: 52 | B52: 5 | C52: 5 | M52: =Control!$C$20+Control!$C$21*A52+Control!$C$22*A52^2 -> 11.3301018
A53: 53 | B53: 91 | C53: 91 | M53: =Control!$C$20+Control!$C$21*A53+Control!$C$22*A53^2 -> 11.62665382
A54: 54 | B54: 531 | C54: 531 | M54: =Control!$C$20+Control!$C$21*A54+Control!$C$22*A54^2 -> 11.92320593
A55: 55 | B55: 1327 | C55: 1327 | M55: =Control!$C$20+Control!$C$21*A55+Control!$C$22*A55^2 -> 12.21975814
A56: 56 | B56: 2322 | C56: 2322 | M56: =Control!$C$20+Control!$C$21*A56+Control!$C$22*A56^2 -> 12.51631044
A57: 57 | B57: 2965 | C57: 2965 | M57: =Control!$C$20+Control!$C$21*A57+Control!$C$22*A57^2 -> 12.81286284
A58: 58 | B58: 2764 | C58: 2764 | M58: =Control!$C$20+Control!$C$21*A58+Control!$C$22*A58^2 -> 13.10941534
A59: 59 | B59: 1890 | C59: 1890 | M59: =Control!$C$20+Control!$C$21*A59+Control!$C$22*A59^2 -> 13.40596793
A60: 60 | B60: 1236 | C60: 1236 | M60: =Control!$C$20+Control!$C$21*A60+Control!$C$22*A60^2 -> 13.70252061
A61: 61 | B61: 1000 | C61: 1000 | M61: =Control!$C$20+Control!$C$21*A61+Control!$C$22*A61^2 -> 13.9990734
A62: 62 | B62: 1043 | C62: 1043 | M62: =Control!$C$20+Control!$C$21*A62+Control!$C$22*A62^2 -> 14.29562627
A63: 63 | B63: 1080 | C63: 1080 | M63: =Control!$C$20+Control!$C$21*A63+Control!$C$22*A63^2 -> 14.59217925
A64: 64 | B64: 1151 | C64: 1151 | M64: =Control!$C$20+Control!$C$21*A64+Control!$C$22*A64^2 -> 14.88873231
A65: 65 | B65: 1427 | C65: 1427 | M65: =Control!$C$20+Control!$C$21*A65+Control!$C$22*A65^2 -> 15.18528548
A66: 66 | B66: 1909 | C66: 1909 | M66: =Control!$C$20+Control!$C$21*A66+Control!$C$22*A66^2 -> 15.48183874
A67: 67 | B67: 2745 | C67: 2745 | M67: =Control!$C$20+Control!$C$21*A67+Control!$C$22*A67^2 -> 15.77839209
A68: 68 | B68: 4008 | C68: 4008 | M68: =Control!$C$20+Control!$C$21*A68+Control!$C$22*A68^2 -> 16.07494555
A69: 69 | B69: 4318 | C69: 4318 | M69: =Control!$C$20+Control!$C$21*A69+Control!$C$22*A69^2 -> 16.37149909
A70: 70 | B70: 3101 | C70: 3101 | M70: =Control!$C$20+Control!$C$21*A70+Control!$C$22*A70^2 -> 16.66805273
A71: 71 | B71: 1945 | C71: 1945 | M71: =Control!$C$20+Control!$C$21*A71+Control!$C$22*A71^2 -> 16.96460647
A72: 72 | B72: 1310 | C72: 1310 | M72: =Control!$C$20+Control!$C$21*A72+Control!$C$22*A72^2 -> 17.26116031
A73: 73 | B73: 1020 | C73: 1020 | M73: =Control!$C$20+Control!$C$21*A73+Control!$C$22*A73^2 -> 17.55771423
A74: 74 | B74: 951 | C74: 951 | M74: =Control!$C$20+Control!$C$21*A74+Control!$C$22*A74^2 -> 17.85426826
A75: 75 | B75: 879 | C75: 879 | M75: =Control!$C$20+Control!$C$21*A75+Control!$C$22*A75^2 -> 18.15082238
A76: 76 | B76: 908 | C76: 908 | M76: =Control!$C$20+Control!$C$21*A76+Control!$C$22*A76^2 -> 18.4473766
A77: 77 | B77: 1166 | C77: 1166 | M77: =Control!$C$20+Control!$C$21*A77+Control!$C$22*A77^2 -> 18.74393091
A78: 78 | B78: 1584 | C78: 1584 | I78: =C78-E78 -> 1584 | M78: =Control!$C$20+Control!$C$21*A78+Control!$C$22*A78^2 -> 19.04048532
A79: 79 | B79: 1495 | C79: 1495 | I79: =C79-E79 -> 1495 | M79: =Control!$C$20+Control!$C$21*A79+Control!$C$22*A79^2 -> 19.33703982
A80: 80 | B80: 1252 | C80: 1252 | M80: =Control!$C$20+Control!$C$21*A80+Control!$C$22*A80^2 -> 19.63359442
A81: 81 | B81: 1074 | C81: 1074 | M81: =Control!$C$20+Control!$C$21*A81+Control!$C$22*A81^2 -> 19.93014911
A82: 82 | B82: 971 | C82: 971 | M82: =Control!$C$20+Control!$C$21*A82+Control!$C$22*A82^2 -> 20.2267039
A83: 83 | B83: 807 | C83: 807 | M83: =Control!$C$20+Control!$C$21*A83+Control!$C$22*A83^2 -> 20.52325879
A84: 84 | B84: 711 | C84: 711 | M84: =Control!$C$20+Control!$C$21*A84+Control!$C$22*A84^2 -> 20.81981377
A85: 85 | B85: 697 | C85: 697 | M85: =Control!$C$20+Control!$C$21*A85+Control!$C$22*A85^2 -> 21.11636884
A86: 86 | B86: 681 | C86: 681 | M86: =Control!$C$20+Control!$C$21*A86+Control!$C$22*A86^2 -> 21.41292402
A87: 87 | B87: 674 | C87: 674 | M87: =Control!$C$20+Control!$C$21*A87+Control!$C$22*A87^2 -> 21.70947929
A88: 88 | B88: 686 | C88: 686 | M88: =Control!$C$20+Control!$C$21*A88+Control!$C$22*A88^2 -> 22.00603465
A89: 89 | B89: 629 | C89: 629 | M89: =Control!$C$20+Control!$C$21*A89+Control!$C$22*A89^2 -> 22.30259011
A90: 90 | B90: 633 | C90: 633 | M90: =Control!$C$20+Control!$C$21*A90+Control!$C$22*A90^2 -> 22.59914566
A91: 91 | B91: 624 | C91: 624 | M91: =Control!$C$20+Control!$C$21*A91+Control!$C$22*A91^2 -> 22.89570131
A92: 92 | B92: 596 | C92: 596 | M92: =Control!$C$20+Control!$C$21*A92+Control!$C$22*A92^2 -> 23.19225706
A93: 93 | B93: 630 | C93: 630 | M93: =Control!$C$20+Control!$C$21*A93+Control!$C$22*A93^2 -> 23.4888129
A94: 94 | B94: 710 | C94: 710 | M94: =Control!$C$20+Control!$C$21*A94+Control!$C$22*A94^2 -> 23.78536884
A95: 95 | B95: 802 | C95: 802 | M95: =Control!$C$20+Control!$C$21*A95+Control!$C$22*A95^2 -> 24.08192487
A96: 96 | B96: 843 | C96: 843 | M96: =Control!$C$20+Control!$C$21*A96+Control!$C$22*A96^2 -> 24.378481
A97: 97 | B97: 726 | C97: 726 | M97: =Control!$C$20+Control!$C$21*A97+Control!$C$22*A97^2 -> 24.67503723
A98: 98 | B98: 657 | C98: 657 | M98: =Control!$C$20+Control!$C$21*A98+Control!$C$22*A98^2 -> 24.97159355
A99: 99 | B99: 643 | C99: 643 | M99: =Control!$C$20+Control!$C$21*A99+Control!$C$22*A99^2 -> 25.26814996
A100: 100 | B100: 770 | C100: 770 | M100: =Control!$C$20+Control!$C$21*A100+Control!$C$22*A100^2 -> 25.56470647
A101: 101 | B101: 883 | C101: 883 | M101: =Control!$C$20+Control!$C$21*A101+Control!$C$22*A101^2 -> 25.86126308
A102: 102 | B102: 752 | C102: 752 | M102: =Control!$C$20+Control!$C$21*A102+Control!$C$22*A102^2 -> 26.15781978
A103: 103 | B103: 632 | C103: 632 | M103: =Control!$C$20+Control!$C$21*A103+Control!$C$22*A103^2 -> 26.45437658
A104: 104 | B104: 619 | C104: 619 | M104: =Control!$C$20+Control!$C$21*A104+Control!$C$22*A104^2 -> 26.75093348
A105: 105 | B105: 597 | C105: 597 | M105: =Control!$C$20+Control!$C$21*A105+Control!$C$22*A105^2 -> 27.04749047
A106: 106 | B106: 648 | C106: 648 | M106: =Control!$C$20+Control!$C$21*A106+Control!$C$22*A106^2 -> 27.34404755
A107: 107 | B107: 645 | C107: 645 | M107: =Control!$C$20+Control!$C$21*A107+Control!$C$22*A107^2 -> 27.64060473
A108: 108 | B108: 595 | C108: 595 | M108: =Control!$C$20+Control!$C$21*A108+Control!$C$22*A108^2 -> 27.93716201
A109: 109 | B109: 542 | C109: 542 | M109: =Control!$C$20+Control!$C$21*A109+Control!$C$22*A109^2 -> 28.23371938
A110: 110 | B110: 607 | C110: 607 | M110: =Control!$C$20+Control!$C$21*A110+Control!$C$22*A110^2 -> 28.53027685
A111: 111 | B111: 554 | C111: 554 | M111: =Control!$C$20+Control!$C$21*A111+Control!$C$22*A111^2 -> 28.82683441
A112: 112 | B112: 555 | C112: 555 | M112: =Control!$C$20+Control!$C$21*A112+Control!$C$22*A112^2 -> 29.12339207
A113: 113 | B113: 550 | C113: 550 | M113: =Control!$C$20+Control!$C$21*A113+Control!$C$22*A113^2 -> 29.41994982
A114: 114 | B114: 521 | C114: 521 | M114: =Control!$C$20+Control!$C$21*A114+Control!$C$22*A114^2 -> 29.71650767
A115: 115 | B115: 568 | C115: 568 | M115: =Control!$C$20+Control!$C$21*A115+Control!$C$22*A115^2 -> 30.01306562
A116: 116 | B116: 544 | C116: 544 | M116: =Control!$C$20+Control!$C$21*A116+Control!$C$22*A116^2 -> 30.30962366
A117: 117 | B117: 557 | C117: 557 | M117: =Control!$C$20+Control!$C$21*A117+Control!$C$22*A117^2 -> 30.6061818
A118: 118 | B118: 550 | C118: 550 | M118: =Control!$C$20+Control!$C$21*A118+Control!$C$22*A118^2 -> 30.90274003
A119: 119 | B119: 526 | C119: 526 | M119: =Control!$C$20+Control!$C$21*A119+Control!$C$22*A119^2 -> 31.19929836
A120: 120 | B120: 538 | C120: 538 | M120: =Control!$C$20+Control!$C$21*A120+Control!$C$22*A120^2 -> 31.49585678
A121: 121 | B121: 536 | C121: 536 | M121: =Control!$C$20+Control!$C$21*A121+Control!$C$22*A121^2 -> 31.7924153
A122: 122 | B122: 529 | C122: 529 | M122: =Control!$C$20+Control!$C$21*A122+Control!$C$22*A122^2 -> 32.08897392
A123: 123 | B123: 511 | C123: 511 | M123: =Control!$C$20+Control!$C$21*A123+Control!$C$22*A123^2 -> 32.38553263
A124: 124 | B124: 548 | C124: 548 | M124: =Control!$C$20+Control!$C$21*A124+Control!$C$22*A124^2 -> 32.68209144
A125: 125 | B125: 567 | C125: 567 | M125: =Control!$C$20+Control!$C$21*A125+Control!$C$22*A125^2 -> 32.97865034
A126: 126 | B126: 516 | C126: 516 | M126: =Control!$C$20+Control!$C$21*A126+Control!$C$22*A126^2 -> 33.27520934
A127: 127 | B127: 543 | C127: 543 | M127: =Control!$C$20+Control!$C$21*A127+Control!$C$22*A127^2 -> 33.57176843
A128: 128 | B128: 515 | C128: 515 | M128: =Control!$C$20+Control!$C$21*A128+Control!$C$22*A128^2 -> 33.86832762
A129: 129 | B129: 532 | C129: 532 | M129: =Control!$C$20+Control!$C$21*A129+Control!$C$22*A129^2 -> 34.16488691
A130: 130 | B130: 525 | C130: 525 | M130: =Control!$C$20+Control!$C$21*A130+Control!$C$22*A130^2 -> 34.46144629
A131: 131 | B131: 524 | C131: 524 | M131: =Control!$C$20+Control!$C$21*A131+Control!$C$22*A131^2 -> 34.75800576
A132: 132 | B132: 526 | C132: 526 | M132: =Control!$C$20+Control!$C$21*A132+Control!$C$22*A132^2 -> 35.05456533
A133: 133 | B133: 519 | C133: 519 | M133: =Control!$C$20+Control!$C$21*A133+Control!$C$22*A133^2 -> 35.351125
A134: 134 | B134: 513 | C134: 513 | M134: =Control!$C$20+Control!$C$21*A134+Control!$C$22*A134^2 -> 35.64768476
A135: 135 | B135: 508 | C135: 508 | M135: =Control!$C$20+Control!$C$21*A135+Control!$C$22*A135^2 -> 35.94424462
A136: 136 | B136: 508 | C136: 508 | M136: =Control!$C$20+Control!$C$21*A136+Control!$C$22*A136^2 -> 36.24080458
A137: 137 | B137: 530 | C137: 530 | M137: =Control!$C$20+Control!$C$21*A137+Control!$C$22*A137^2 -> 36.53736463
A138: 138 | B138: 492 | C138: 492 | M138: =Control!$C$20+Control!$C$21*A138+Control!$C$22*A138^2 -> 36.83392477
A139: 139 | B139: 538 | C139: 538 | M139: =Control!$C$20+Control!$C$21*A139+Control!$C$22*A139^2 -> 37.13048501
A140: 140 | B140: 545 | C140: 545 | M140: =Control!$C$20+Control!$C$21*A140+Control!$C$22*A140^2 -> 37.42704535
A141: 141 | B141: 534 | C141: 534 | M141: =Control!$C$20+Control!$C$21*A141+Control!$C$22*A141^2 -> 37.72360578
A142: 142 | B142: 500 | C142: 500 | M142: =Control!$C$20+Control!$C$21*A142+Control!$C$22*A142^2 -> 38.02016631
A143: 143 | B143: 504 | C143: 504 | M143: =Control!$C$20+Control!$C$21*A143+Control!$C$22*A143^2 -> 38.31672693
A144: 144 | B144: 538 | C144: 538 | M144: =Control!$C$20+Control!$C$21*A144+Control!$C$22*A144^2 -> 38.61328765
A145: 145 | B145: 503 | C145: 503 | M145: =Control!$C$20+Control!$C$21*A145+Control!$C$22*A145^2 -> 38.90984847
A146: 146 | B146: 495 | C146: 495 | M146: =Control!$C$20+Control!$C$21*A146+Control!$C$22*A146^2 -> 39.20640938
A147: 147 | B147: 536 | C147: 536 | M147: =Control!$C$20+Control!$C$21*A147+Control!$C$22*A147^2 -> 39.50297039
A148: 148 | B148: 533 | C148: 533 | M148: =Control!$C$20+Control!$C$21*A148+Control!$C$22*A148^2 -> 39.79953149
A149: 149 | B149: 599 | C149: 599 | M149: =Control!$C$20+Control!$C$21*A149+Control!$C$22*A149^2 -> 40.09609268
A150: 150 | B150: 524 | C150: 524 | M150: =Control!$C$20+Control!$C$21*A150+Control!$C$22*A150^2 -> 40.39265398
A151: 151 | B151: 519 | C151: 519 | M151: =Control!$C$20+Control!$C$21*A151+Control!$C$22*A151^2 -> 40.68921537
A152: 152 | B152: 522 | C152: 522 | M152: =Control!$C$20+Control!$C$21*A152+Control!$C$22*A152^2 -> 40.98577685
A153: 153 | B153: 513 | C153: 513 | M153: =Control!$C$20+Control!$C$21*A153+Control!$C$22*A153^2 -> 41.28233843
A154: 154 | B154: 534 | C154: 534 | M154: =Control!$C$20+Control!$C$21*A154+Control!$C$22*A154^2 -> 41.57890011
A155: 155 | B155: 549 | C155: 549 | M155: =Control!$C$20+Control!$C$21*A155+Control!$C$22*A155^2 -> 41.87546188
A156: 156 | B156: 557 | C156: 557 | M156: =Control!$C$20+Control!$C$21*A156+Control!$C$22*A156^2 -> 42.17202374
A157: 157 | B157: 519 | C157: 519 | M157: =Control!$C$20+Control!$C$21*A157+Control!$C$22*A157^2 -> 42.46858571
A158: 158 | B158: 505 | C158: 505 | M158: =Control!$C$20+Control!$C$21*A158+Control!$C$22*A158^2 -> 42.76514777
A159: 159 | B159: 553 | C159: 553 | M159: =Control!$C$20+Control!$C$21*A159+Control!$C$22*A159^2 -> 43.06170992
A160: 160 | B160: 504 | C160: 504 | M160: =Control!$C$20+Control!$C$21*A160+Control!$C$22*A160^2 -> 43.35827217
A161: 161 | B161: 520 | C161: 520 | M161: =Control!$C$20+Control!$C$21*A161+Control!$C$22*A161^2 -> 43.65483451
A162: 162 | B162: 550 | C162: 550 | M162: =Control!$C$20+Control!$C$21*A162+Control!$C$22*A162^2 -> 43.95139695
A163: 163 | B163: 507 | C163: 507 | M163: =Control!$C$20+Control!$C$21*A163+Control!$C$22*A163^2 -> 44.24795949
A164: 164 | B164: 527 | C164: 527 | M164: =Control!$C$20+Control!$C$21*A164+Control!$C$22*A164^2 -> 44.54452212
A165: 165 | B165: 529 | C165: 529 | M165: =Control!$C$20+Control!$C$21*A165+Control!$C$22*A165^2 -> 44.84108485
A166: 166 | B166: 535 | C166: 535 | M166: =Control!$C$20+Control!$C$21*A166+Control!$C$22*A166^2 -> 45.13764767
A167: 167 | B167: 474 | C167: 474 | M167: =Control!$C$20+Control!$C$21*A167+Control!$C$22*A167^2 -> 45.43421059
A168: 168 | B168: 540 | C168: 540 | M168: =Control!$C$20+Control!$C$21*A168+Control!$C$22*A168^2 -> 45.73077361
A169: 169 | B169: 628 | C169: 628 | M169: =Control!$C$20+Control!$C$21*A169+Control!$C$22*A169^2 -> 46.02733672
A170: 170 | B170: 923 | C170: 923 | M170: =Control!$C$20+Control!$C$21*A170+Control!$C$22*A170^2 -> 46.32389992
A171: 171 | B171: 1588 | C171: 1588 | M171: =Control!$C$20+Control!$C$21*A171+Control!$C$22*A171^2 -> 46.62046323
A172: 172 | B172: 1402 | C172: 1402 | M172: =Control!$C$20+Control!$C$21*A172+Control!$C$22*A172^2 -> 46.91702662
A173: 173 | B173: 963 | C173: 963 | M173: =Control!$C$20+Control!$C$21*A173+Control!$C$22*A173^2 -> 47.21359012
A174: 174 | B174: 576 | C174: 576 | M174: =Control!$C$20+Control!$C$21*A174+Control!$C$22*A174^2 -> 47.5101537
A175: 175 | B175: 493 | C175: 493 | M175: =Control!$C$20+Control!$C$21*A175+Control!$C$22*A175^2 -> 47.80671739
A176: 176 | B176: 483 | C176: 483 | M176: =Control!$C$20+Control!$C$21*A176+Control!$C$22*A176^2 -> 48.10328117
A177: 177 | B177: 509 | C177: 509 | M177: =Control!$C$20+Control!$C$21*A177+Control!$C$22*A177^2 -> 48.39984504
A178: 178 | B178: 530 | C178: 530 | M178: =Control!$C$20+Control!$C$21*A178+Control!$C$22*A178^2 -> 48.69640901
A179: 179 | B179: 463 | C179: 463 | M179: =Control!$C$20+Control!$C$21*A179+Control!$C$22*A179^2 -> 48.99297308
A180: 180 | B180: 537 | C180: 537 | M180: =Control!$C$20+Control!$C$21*A180+Control!$C$22*A180^2 -> 49.28953724
A181: 181 | B181: 601 | C181: 601 | M181: =Control!$C$20+Control!$C$21*A181+Control!$C$22*A181^2 -> 49.5861015
A182: 182 | B182: 609 | C182: 609 | M182: =Control!$C$20+Control!$C$21*A182+Control!$C$22*A182^2 -> 49.88266585
A183: 183 | B183: 525 | C183: 525 | M183: =Control!$C$20+Control!$C$21*A183+Control!$C$22*A183^2 -> 50.1792303
A184: 184 | B184: 570 | C184: 570 | M184: =Control!$C$20+Control!$C$21*A184+Control!$C$22*A184^2 -> 50.47579485
A185: 185 | B185: 552 | C185: 552 | M185: =Control!$C$20+Control!$C$21*A185+Control!$C$22*A185^2 -> 50.77235949
A186: 186 | B186: 570 | C186: 570 | M186: =Control!$C$20+Control!$C$21*A186+Control!$C$22*A186^2 -> 51.06892422
A187: 187 | B187: 552 | C187: 552 | M187: =Control!$C$20+Control!$C$21*A187+Control!$C$22*A187^2 -> 51.36548906
A188: 188 | B188: 528 | C188: 528 | M188: =Control!$C$20+Control!$C$21*A188+Control!$C$22*A188^2 -> 51.66205398
A189: 189 | B189: 564 | C189: 564 | M189: =Control!$C$20+Control!$C$21*A189+Control!$C$22*A189^2 -> 51.95861901
A190: 190 | B190: 571 | C190: 571 | M190: =Control!$C$20+Control!$C$21*A190+Control!$C$22*A190^2 -> 52.25518412
A191: 191 | B191: 564 | C191: 564 | M191: =Control!$C$20+Control!$C$21*A191+Control!$C$22*A191^2 -> 52.55174934
A192: 192 | B192: 557 | C192: 557 | M192: =Control!$C$20+Control!$C$21*A192+Control!$C$22*A192^2 -> 52.84831465
A193: 193 | B193: 680 | C193: 680 | M193: =Control!$C$20+Control!$C$21*A193+Control!$C$22*A193^2 -> 53.14488005
A194: 194 | B194: 751 | C194: 751 | M194: =Control!$C$20+Control!$C$21*A194+Control!$C$22*A194^2 -> 53.44144556
A195: 195 | B195: 681 | C195: 681 | M195: =Control!$C$20+Control!$C$21*A195+Control!$C$22*A195^2 -> 53.73801115
A196: 196 | B196: 615 | C196: 615 | M196: =Control!$C$20+Control!$C$21*A196+Control!$C$22*A196^2 -> 54.03457684
A197: 197 | B197: 530 | C197: 530 | M197: =Control!$C$20+Control!$C$21*A197+Control!$C$22*A197^2 -> 54.33114263
A198: 198 | B198: 588 | C198: 588 | M198: =Control!$C$20+Control!$C$21*A198+Control!$C$22*A198^2 -> 54.62770852
A199: 199 | B199: 573 | C199: 573 | M199: =Control!$C$20+Control!$C$21*A199+Control!$C$22*A199^2 -> 54.9242745
A200: 200 | B200: 580 | C200: 580 | M200: =Control!$C$20+Control!$C$21*A200+Control!$C$22*A200^2 -> 55.22084057
... 4280 more rows

Sheet Assessment
B2: SpecMaker - Spectrum Analysis Assessment | J2: =F6 -> 0
B3: =CELL("filename",B2) -> C:\&Temp Files\SpecMaker 2025 Plus\[SpecMaker 2025 Plus.xlsm]Assessment | J3: =E7 -> 0
B4: Spreadsheet prepared by Dr. Gordon Gilmore
F6: =Control!C32 -> 0 | H6: Peak Analysis
D7: Program: | J7: Number of peaks created: | K7: =COUNT(D21:D70) -> 0
D8: Version: | J8: Number of measured peaks: | K8: =M72 -> 0
D9: Date of Analysis: | E9: =NOW() -> 2025-03-17T12:53:42.920 | J9: Number of missed peaks: | K9: =K7-K8 -> 0
D10: Comments: | J10: Number of spurious peaks: | K10: 0
D11: Energy Calibration: | E11: =Control!C21 -> 0.2965469956 | F11: keV/ch | J11: Peak Detection Index (Target =1): | K11: =IF(K7>0,(K8-K10)/K7,"") -> 
C13: Centroid and FWHM Differences | I13: Area Estimation
F14: Channels | G14: keV | J14: Centroid of Distribution: | K14: =IF(M72>0,Stats!$L$25,"") -> 
E15: RMS Centroid Difference: | F15: =IF(K8>2,P72/E11,"") ->  | G15: =IF(F15<>"",P72,"") ->  | I15: =IF(M72>0,Stats!M20,"") -> 
E16: RMS FWHM differences: | G16: =IF(K8>2,Q72,"") ->  | I16: =IFERROR("",VLOOKUP(ABS(K15),Stats!$J$37:$K$42,2)) -> 
C18: Requested Values | G18: Given Values | I18: Measured Values | N18: Assessments
C19: Peak Energy | D19: Peak Area | E19: Peak Centroid | F19: FWHM | G19: Peak Area | H19: Peak Centroid | I19: Peak Energy | J19: Peak Area | K19: Std. Uncert | L19: Peak Centroid | M19: FWHM | N19: Peak Area | O19: Significance | P19: Centroid Difference | Q19: FWHM Diffs | R19: Pk. Area Ratio
C20: (keV) | D20: (counts) | E20: (channels) | F20: (keV) | G20: (counts) | H20: (channels) | I20: (keV) | J20: (counts) | K20: (%) | L20: (channels) | M20: (keV) | N20: z-score | P20: (keV) | Q20: (keV)
B21: 1 | C21: =IF(Control!H9<>"",Control!H9,"") ->  | D21: =IF(Control!I9<>"",Control!I9,"") ->  | E21: =Control!J9 ->  | F21: =Control!K9 ->  | G21: =IF(Control!Q9<>"",Control!Q9,"") ->  | H21: =IF(Control!P9<>"",Control!P9,"") ->  | N21: =IF(AND(J21<>"",K21<>""),(J21-G21)/(K21*J21),"") ->  | O21: =IF(N21<>"",VLOOKUP(ABS(N21),Stats!$J$37:$K$42,2),"") ->  | P21: =IF(L21<>"",(I21-C21),"") ->  | Q21: =IF(M21<>"",(M21-F21),"") ->  | R21: =IF(J21<>"",(J21/D21)^2,"") -> 
B22: 2 | C22: =IF(Control!H10<>"",Control!H10,"") ->  | D22: =IF(Control!I10<>"",Control!I10,"") ->  | E22: =Control!J10 ->  | F22: =Control!K10 ->  | G22: =IF(Control!Q10<>"",Control!Q10,"") ->  | H22: =IF(Control!P10<>"",Control!P10,"") ->  | N22: =IF(AND(J22<>"",K22<>""),(J22-G22)/(K22*J22),"") ->  | O22: =IF(N22<>"",VLOOKUP(ABS(N22),Stats!$J$37:$K$42,2),"") ->  | P22: =IF(L22<>"",(I22-C22),"") ->  | Q22: =IF(M22<>"",(M22-F22),"") ->  | R22: =IF(J22<>"",(J22/D22)^2,"") -> 
B23: 3 | C23: =IF(Control!H11<>"",Control!H11,"") ->  | D23: =IF(Control!I11<>"",Control!I11,"") ->  | E23: =Control!J11 ->  | F23: =Control!K11 ->  | G23: =IF(Control!Q11<>"",Control!Q11,"") ->  | H23: =IF(Control!P11<>"",Control!P11,"") ->  | O23: =IF(N23<>"",VLOOKUP(ABS(N23),Stats!$J$37:$K$42,2),"") -> 
B24: 4 | C24: =IF(Control!H12<>"",Control!H12,"") ->  | D24: =IF(Control!I12<>"",Control!I12,"") ->  | E24: =Control!J12 ->  | F24: =Control!K12 ->  | G24: =IF(Control!Q12<>"",Control!Q12,"") ->  | H24: =IF(Control!P12<>"",Control!P12,"") ->  | N24: =IF(AND(J24<>"",K24<>""),(J24-G24)/(K24*J24),"") ->  | O24: =IF(N24<>"",VLOOKUP(ABS(N24),Stats!$J$37:$K$42,2),"") -> 
B25: 5 | C25: =IF(Control!H13<>"",Control!H13,"") ->  | D25: =IF(Control!I13<>"",Control!I13,"") ->  | E25: =Control!J13 ->  | F25: =Control!K13 ->  | G25: =IF(Control!Q13<>"",Control!Q13,"") ->  | H25: =IF(Control!P13<>"",Control!P13,"") ->  | O25: =IF(N25<>"",VLOOKUP(ABS(N25),Stats!$J$37:$K$42,2),"") -> 
B26: 6 | C26: =IF(Control!H14<>"",Control!H14,"") ->  | D26: =IF(Control!I14<>"",Control!I14,"") ->  | E26: =Control!J14 ->  | F26: =Control!K14 ->  | G26: =IF(Control!Q14<>"",Control!Q14,"") ->  | H26: =IF(Control!P14<>"",Control!P14,"") ->  | O26: =IF(N26<>"",VLOOKUP(ABS(N26),Stats!$J$37:$K$42,2),"") -> 
B27: 7 | C27: =IF(Control!H15<>"",Control!H15,"") ->  | D27: =IF(Control!I15<>"",Control!I15,"") ->  | E27: =Control!J15 ->  | F27: =Control!K15 ->  | G27: =IF(Control!Q15<>"",Control!Q15,"") ->  | H27: =IF(Control!P15<>"",Control!P15,"") ->  | O27: =IF(N27<>"",VLOOKUP(ABS(N27),Stats!$J$37:$K$42,2),"") -> 
B28: 8 | C28: =IF(Control!H16<>"",Control!H16,"") ->  | D28: =IF(Control!I16<>"",Control!I16,"") ->  | E28: =Control!J16 ->  | F28: =Control!K16 ->  | G28: =IF(Control!Q16<>"",Control!Q16,"") ->  | H28: =IF(Control!P16<>"",Control!P16,"") ->  | O28: =IF(N28<>"",VLOOKUP(ABS(N28),Stats!$J$37:$K$42,2),"") -> 
B29: 9 | C29: =IF(Control!H17<>"",Control!H17,"") ->  | D29: =IF(Control!I17<>"",Control!I17,"") ->  | E29: =Control!J17 ->  | F29: =Control!K17 ->  | G29: =IF(Control!Q17<>"",Control!Q17,"") ->  | H29: =IF(Control!P17<>"",Control!P17,"") ->  | O29: =IF(N29<>"",VLOOKUP(ABS(N29),Stats!$J$37:$K$42,2),"") -> 
B30: 10 | C30: =IF(Control!H18<>"",Control!H18,"") ->  | D30: =IF(Control!I18<>"",Control!I18,"") ->  | E30: =Control!J18 ->  | F30: =Control!K18 ->  | G30: =IF(Control!Q18<>"",Control!Q18,"") ->  | H30: =IF(Control!P18<>"",Control!P18,"") ->  | O30: =IF(N30<>"",VLOOKUP(ABS(N30),Stats!$J$37:$K$42,2),"") -> 
B31: 11 | C31: =IF(Control!H19<>"",Control!H19,"") ->  | D31: =IF(Control!I19<>"",Control!I19,"") ->  | E31: =Control!J19 ->  | F31: =Control!K19 ->  | G31: =IF(Control!Q19<>"",Control!Q19,"") ->  | H31: =IF(Control!P19<>"",Control!P19,"") ->  | O31: =IF(N31<>"",VLOOKUP(ABS(N31),Stats!$J$37:$K$42,2),"") -> 
B32: 12 | C32: =IF(Control!H20<>"",Control!H20,"") ->  | D32: =IF(Control!I20<>"",Control!I20,"") ->  | E32: =Control!J20 ->  | F32: =Control!K20 ->  | G32: =IF(Control!Q20<>"",Control!Q20,"") ->  | H32: =IF(Control!P20<>"",Control!P20,"") ->  | O32: =IF(N32<>"",VLOOKUP(ABS(N32),Stats!$J$37:$K$42,2),"") -> 
B33: 13 | C33: =IF(Control!H21<>"",Control!H21,"") ->  | D33: =IF(Control!I21<>"",Control!I21,"") ->  | E33: =Control!J21 ->  | F33: =Control!K21 ->  | G33: =IF(Control!Q21<>"",Control!Q21,"") ->  | H33: =IF(Control!P21<>"",Control!P21,"") ->  | O33: =IF(N33<>"",VLOOKUP(ABS(N33),Stats!$J$37:$K$42,2),"") -> 
B34: 14 | C34: =IF(Control!H22<>"",Control!H22,"") ->  | D34: =IF(Control!I22<>"",Control!I22,"") ->  | E34: =Control!J22 ->  | F34: =Control!K22 ->  | G34: =IF(Control!Q22<>"",Control!Q22,"") ->  | H34: =IF(Control!P22<>"",Control!P22,"") ->  | O34: =IF(N34<>"",VLOOKUP(ABS(N34),Stats!$J$37:$K$42,2),"") -> 
B35: 15 | C35: =IF(Control!H23<>"",Control!H23,"") ->  | D35: =IF(Control!I23<>"",Control!I23,"") ->  | E35: =Control!J23 ->  | F35: =Control!K23 ->  | G35: =IF(Control!Q23<>"",Control!Q23,"") ->  | H35: =IF(Control!P23<>"",Control!P23,"") ->  | O35: =IF(N35<>"",VLOOKUP(ABS(N35),Stats!$J$37:$K$42,2),"") -> 
B36: 16 | C36: =IF(Control!H24<>"",Control!H24,"") ->  | D36: =IF(Control!I24<>"",Control!I24,"") ->  | E36: =Control!J24 ->  | F36: =Control!K24 ->  | G36: =IF(Control!Q24<>"",Control!Q24,"") ->  | H36: =IF(Control!P24<>"",Control!P24,"") ->  | O36: =IF(N36<>"",VLOOKUP(ABS(N36),Stats!$J$37:$K$42,2),"") -> 
B37: 17 | C37: =IF(Control!H25<>"",Control!H25,"") ->  | D37: =IF(Control!I25<>"",Control!I25,"") ->  | E37: =Control!J25 ->  | F37: =Control!K25 ->  | G37: =IF(Control!Q25<>"",Control!Q25,"") ->  | H37: =IF(Control!P25<>"",Control!P25,"") ->  | O37: =IF(N37<>"",VLOOKUP(ABS(N37),Stats!$J$37:$K$42,2),"") -> 
B38: 18 | C38: =IF(Control!H26<>"",Control!H26,"") ->  | D38: =IF(Control!I26<>"",Control!I26,"") ->  | E38: =Control!J26 ->  | F38: =Control!K26 ->  | G38: =IF(Control!Q26<>"",Control!Q26,"") ->  | H38: =IF(Control!P26<>"",Control!P26,"") ->  | O38: =IF(N38<>"",VLOOKUP(ABS(N38),Stats!$J$37:$K$42,2),"") -> 
B39: 19 | C39: =IF(Control!H27<>"",Control!H27,"") ->  | D39: =IF(Control!I27<>"",Control!I27,"") ->  | E39: =Control!J27 ->  | F39: =Control!K27 ->  | G39: =IF(Control!Q27<>"",Control!Q27,"") ->  | H39: =IF(Control!P27<>"",Control!P27,"") ->  | O39: =IF(N39<>"",VLOOKUP(ABS(N39),Stats!$J$37:$K$42,2),"") -> 
B40: 20 | C40: =IF(Control!H28<>"",Control!H28,"") ->  | D40: =IF(Control!I28<>"",Control!I28,"") ->  | E40: =Control!J28 ->  | F40: =Control!K28 ->  | G40: =IF(Control!Q28<>"",Control!Q28,"") ->  | H40: =IF(Control!P28<>"",Control!P28,"") ->  | O40: =IF(N40<>"",VLOOKUP(ABS(N40),Stats!$J$37:$K$42,2),"") -> 
B41: 21 | C41: =IF(Control!H29<>"",Control!H29,"") ->  | D41: =IF(Control!I29<>"",Control!I29,"") ->  | E41: =Control!J29 ->  | F41: =Control!K29 ->  | G41: =IF(Control!Q29<>"",Control!Q29,"") ->  | H41: =IF(Control!P29<>"",Control!P29,"") ->  | O41: =IF(N41<>"",VLOOKUP(ABS(N41),Stats!$J$37:$K$42,2),"") -> 
B42: 22 | C42: =IF(Control!H30<>"",Control!H30,"") ->  | D42: =IF(Control!I30<>"",Control!I30,"") ->  | E42: =Control!J30 ->  | F42: =Control!K30 ->  | G42: =IF(Control!Q30<>"",Control!Q30,"") ->  | H42: =IF(Control!P30<>"",Control!P30,"") ->  | O42: =IF(N42<>"",VLOOKUP(ABS(N42),Stats!$J$37:$K$42,2),"") -> 
B43: 23 | C43: =IF(Control!H31<>"",Control!H31,"") ->  | D43: =IF(Control!I31<>"",Control!I31,"") ->  | E43: =Control!J31 ->  | F43: =Control!K31 ->  | G43: =IF(Control!Q31<>"",Control!Q31,"") ->  | H43: =IF(Control!P31<>"",Control!P31,"") ->  | O43: =IF(N43<>"",VLOOKUP(ABS(N43),Stats!$J$37:$K$42,2),"") -> 
B44: 24 | C44: =IF(Control!H32<>"",Control!H32,"") ->  | D44: =IF(Control!I32<>"",Control!I32,"") ->  | E44: =Control!J32 ->  | F44: =Control!K32 ->  | G44: =IF(Control!Q32<>"",Control!Q32,"") ->  | H44: =IF(Control!P32<>"",Control!P32,"") ->  | O44: =IF(N44<>"",VLOOKUP(ABS(N44),Stats!$J$37:$K$42,2),"") -> 
B45: 25 | C45: =IF(Control!H33<>"",Control!H33,"") ->  | D45: =IF(Control!I33<>"",Control!I33,"") ->  | E45: =Control!J33 ->  | F45: =Control!K33 ->  | G45: =IF(Control!Q33<>"",Control!Q33,"") ->  | H45: =IF(Control!P33<>"",Control!P33,"") ->  | O45: =IF(N45<>"",VLOOKUP(ABS(N45),Stats!$J$37:$K$42,2),"") -> 
B46: 26 | C46: =IF(Control!H34<>"",Control!H34,"") ->  | D46: =IF(Control!I34<>"",Control!I34,"") ->  | E46: =Control!J34 ->  | F46: =Control!K34 ->  | G46: =IF(Control!Q34<>"",Control!Q34,"") ->  | H46: =IF(Control!P34<>"",Control!P34,"") ->  | O46: =IF(N46<>"",VLOOKUP(ABS(N46),Stats!$J$37:$K$42,2),"") -> 
B47: 27 | C47: =IF(Control!H35<>"",Control!H35,"") ->  | D47: =IF(Control!I35<>"",Control!I35,"") ->  | E47: =Control!J35 ->  | F47: =Control!K35 ->  | G47: =IF(Control!Q35<>"",Control!Q35,"") ->  | H47: =IF(Control!P35<>"",Control!P35,"") ->  | O47: =IF(N47<>"",VLOOKUP(ABS(N47),Stats!$J$37:$K$42,2),"") -> 
B48: 28 | C48: =IF(Control!H36<>"",Control!H36,"") ->  | D48: =IF(Control!I36<>"",Control!I36,"") ->  | E48: =Control!J36 ->  | F48: =Control!K36 ->  | G48: =IF(Control!Q36<>"",Control!Q36,"") ->  | H48: =IF(Control!P36<>"",Control!P36,"") ->  | O48: =IF(N48<>"",VLOOKUP(ABS(N48),Stats!$J$37:$K$42,2),"") -> 
B49: 29 | C49: =IF(Control!H37<>"",Control!H37,"") ->  | D49: =IF(Control!I37<>"",Control!I37,"") ->  | E49: =Control!J37 ->  | F49: =Control!K37 ->  | G49: =IF(Control!Q37<>"",Control!Q37,"") ->  | H49: =IF(Control!P37<>"",Control!P37,"") ->  | O49: =IF(N49<>"",VLOOKUP(ABS(N49),Stats!$J$37:$K$42,2),"") -> 
B50: 30 | C50: =IF(Control!H38<>"",Control!H38,"") ->  | D50: =IF(Control!I38<>"",Control!I38,"") ->  | E50: =Control!J38 ->  | F50: =Control!K38 ->  | G50: =IF(Control!Q38<>"",Control!Q38,"") ->  | H50: =IF(Control!P38<>"",Control!P38,"") ->  | O50: =IF(N50<>"",VLOOKUP(ABS(N50),Stats!$J$37:$K$42,2),"") -> 
B51: 31 | C51: =IF(Control!H39<>"",Control!H39,"") ->  | D51: =IF(Control!I39<>"",Control!I39,"") ->  | E51: =Control!J39 ->  | F51: =Control!K39 ->  | G51: =IF(Control!Q39<>"",Control!Q39,"") ->  | H51: =IF(Control!P39<>"",Control!P39,"") ->  | O51: =IF(N51<>"",VLOOKUP(ABS(N51),Stats!$J$37:$K$42,2),"") -> 
B52: 32 | C52: =IF(Control!H40<>"",Control!H40,"") ->  | D52: =IF(Control!I40<>"",Control!I40,"") ->  | E52: =Control!J40 ->  | F52: =Control!K40 ->  | G52: =IF(Control!Q40<>"",Control!Q40,"") ->  | H52: =IF(Control!P40<>"",Control!P40,"") ->  | O52: =IF(N52<>"",VLOOKUP(ABS(N52),Stats!$J$37:$K$42,2),"") -> 
B53: 33 | C53: =IF(Control!H41<>"",Control!H41,"") ->  | D53: =IF(Control!I41<>"",Control!I41,"") ->  | E53: =Control!J41 ->  | F53: =Control!K41 ->  | G53: =IF(Control!Q41<>"",Control!Q41,"") ->  | H53: =IF(Control!P41<>"",Control!P41,"") ->  | O53: =IF(N53<>"",VLOOKUP(ABS(N53),Stats!$J$37:$K$42,2),"") -> 
B54: 34 | C54: =IF(Control!H42<>"",Control!H42,"") ->  | D54: =IF(Control!I42<>"",Control!I42,"") ->  | E54: =Control!J42 ->  | F54: =Control!K42 ->  | G54: =IF(Control!Q42<>"",Control!Q42,"") ->  | H54: =IF(Control!P42<>"",Control!P42,"") ->  | O54: =IF(N54<>"",VLOOKUP(ABS(N54),Stats!$J$37:$K$42,2),"") -> 
B55: 35 | C55: =IF(Control!H43<>"",Control!H43,"") ->  | D55: =IF(Control!I43<>"",Control!I43,"") ->  | E55: =Control!J43 ->  | F55: =Control!K43 ->  | G55: =IF(Control!Q43<>"",Control!Q43,"") ->  | H55: =IF(Control!P43<>"",Control!P43,"") ->  | O55: =IF(N55<>"",VLOOKUP(ABS(N55),Stats!$J$37:$K$42,2),"") -> 
B56: 36 | C56: =IF(Control!H44<>"",Control!H44,"") ->  | D56: =IF(Control!I44<>"",Control!I44,"") ->  | E56: =Control!J44 ->  | F56: =Control!K44 ->  | G56: =IF(Control!Q44<>"",Control!Q44,"") ->  | H56: =IF(Control!P44<>"",Control!P44,"") ->  | O56: =IF(N56<>"",VLOOKUP(ABS(N56),Stats!$J$37:$K$42,2),"") -> 
B57: 37 | C57: =IF(Control!H45<>"",Control!H45,"") ->  | D57: =IF(Control!I45<>"",Control!I45,"") ->  | E57: =Control!J45 ->  | F57: =Control!K45 ->  | G57: =IF(Control!Q45<>"",Control!Q45,"") ->  | H57: =IF(Control!P45<>"",Control!P45,"") ->  | O57: =IF(N57<>"",VLOOKUP(ABS(N57),Stats!$J$37:$K$42,2),"") -> 
B58: 38 | C58: =IF(Control!H46<>"",Control!H46,"") ->  | D58: =IF(Control!I46<>"",Control!I46,"") ->  | E58: =Control!J46 ->  | F58: =Control!K46 ->  | G58: =IF(Control!Q46<>"",Control!Q46,"") ->  | H58: =IF(Control!P46<>"",Control!P46,"") ->  | O58: =IF(N58<>"",VLOOKUP(ABS(N58),Stats!$J$37:$K$42,2),"") -> 
B59: 39 | C59: =IF(Control!H47<>"",Control!H47,"") ->  | D59: =IF(Control!I47<>"",Control!I47,"") ->  | E59: =Control!J47 ->  | F59: =Control!K47 ->  | G59: =IF(Control!Q47<>"",Control!Q47,"") ->  | H59: =IF(Control!P47<>"",Control!P47,"") ->  | O59: =IF(N59<>"",VLOOKUP(ABS(N59),Stats!$J$37:$K$42,2),"") -> 
B60: 40 | C60: =IF(Control!H48<>"",Control!H48,"") ->  | D60: =IF(Control!I48<>"",Control!I48,"") ->  | E60: =Control!J48 ->  | F60: =Control!K48 ->  | G60: =IF(Control!Q48<>"",Control!Q48,"") ->  | H60: =IF(Control!P48<>"",Control!P48,"") ->  | O60: =IF(N60<>"",VLOOKUP(ABS(N60),Stats!$J$37:$K$42,2),"") -> 
B61: 41 | C61: =IF(Control!H49<>"",Control!H49,"") ->  | D61: =IF(Control!I49<>"",Control!I49,"") ->  | E61: =Control!J49 ->  | F61: =Control!K49 ->  | G61: =IF(Control!Q49<>"",Control!Q49,"") ->  | H61: =IF(Control!P49<>"",Control!P49,"") ->  | O61: =IF(N61<>"",VLOOKUP(ABS(N61),Stats!$J$37:$K$42,2),"") -> 
B62: 42 | C62: =IF(Control!H50<>"",Control!H50,"") ->  | D62: =IF(Control!I50<>"",Control!I50,"") ->  | E62: =Control!J50 ->  | F62: =Control!K50 ->  | G62: =IF(Control!Q50<>"",Control!Q50,"") ->  | H62: =IF(Control!P50<>"",Control!P50,"") ->  | O62: =IF(N62<>"",VLOOKUP(ABS(N62),Stats!$J$37:$K$42,2),"") -> 
B63: 43 | C63: =IF(Control!H51<>"",Control!H51,"") ->  | D63: =IF(Control!I51<>"",Control!I51,"") ->  | E63: =Control!J51 ->  | F63: =Control!K51 ->  | G63: =IF(Control!Q51<>"",Control!Q51,"") ->  | H63: =IF(Control!P51<>"",Control!P51,"") ->  | O63: =IF(N63<>"",VLOOKUP(ABS(N63),Stats!$J$37:$K$42,2),"") -> 
B64: 44 | C64: =IF(Control!H52<>"",Control!H52,"") ->  | D64: =IF(Control!I52<>"",Control!I52,"") ->  | E64: =Control!J52 ->  | F64: =Control!K52 ->  | G64: =IF(Control!Q52<>"",Control!Q52,"") ->  | H64: =IF(Control!P52<>"",Control!P52,"") ->  | O64: =IF(N64<>"",VLOOKUP(ABS(N64),Stats!$J$37:$K$42,2),"") -> 
B65: 45 | C65: =IF(Control!H53<>"",Control!H53,"") ->  | D65: =IF(Control!I53<>"",Control!I53,"") ->  | E65: =Control!J53 ->  | F65: =Control!K53 ->  | G65: =IF(Control!Q53<>"",Control!Q53,"") ->  | H65: =IF(Control!P53<>"",Control!P53,"") ->  | O65: =IF(N65<>"",VLOOKUP(ABS(N65),Stats!$J$37:$K$42,2),"") -> 
B66: 46 | C66: =IF(Control!H54<>"",Control!H54,"") ->  | D66: =IF(Control!I54<>"",Control!I54,"") ->  | E66: =Control!J54 ->  | F66: =Control!K54 ->  | G66: =IF(Control!Q54<>"",Control!Q54,"") ->  | H66: =IF(Control!P54<>"",Control!P54,"") ->  | O66: =IF(N66<>"",VLOOKUP(ABS(N66),Stats!$J$37:$K$42,2),"") -> 
B67: 47 | C67: =IF(Control!H55<>"",Control!H55,"") ->  | D67: =IF(Control!I55<>"",Control!I55,"") ->  | E67: =Control!J55 ->  | F67: =Control!K55 ->  | G67: =IF(Control!Q55<>"",Control!Q55,"") ->  | H67: =IF(Control!P55<>"",Control!P55,"") ->  | O67: =IF(N67<>"",VLOOKUP(ABS(N67),Stats!$J$37:$K$42,2),"") -> 
B68: 48 | C68: =IF(Control!H56<>"",Control!H56,"") ->  | D68: =IF(Control!I56<>"",Control!I56,"") ->  | E68: =Control!J56 ->  | F68: =Control!K56 ->  | G68: =IF(Control!Q56<>"",Control!Q56,"") ->  | H68: =IF(Control!P56<>"",Control!P56,"") ->  | O68: =IF(N68<>"",VLOOKUP(ABS(N68),Stats!$J$37:$K$42,2),"") -> 
B69: 49 | C69: =IF(Control!H57<>"",Control!H57,"") ->  | D69: =IF(Control!I57<>"",Control!I57,"") ->  | E69: =Control!J57 ->  | F69: =Control!K57 ->  | G69: =IF(Control!Q57<>"",Control!Q57,"") ->  | H69: =IF(Control!P57<>"",Control!P57,"") ->  | O69: =IF(N69<>"",VLOOKUP(ABS(N69),Stats!$J$37:$K$42,2),"") -> 
B70: 50 | C70: =IF(Control!H58<>"",Control!H58,"") ->  | D70: =IF(Control!I58<>"",Control!I58,"") ->  | E70: =Control!J58 ->  | F70: =Control!K58 ->  | G70: =IF(Control!Q58<>"",Control!Q58,"") ->  | H70: =IF(Control!P58<>"",Control!P58,"") ->  | O70: =IF(N70<>"",VLOOKUP(ABS(N70),Stats!$J$37:$K$42,2),"") -> 
G71: Counts | J71: Area (counts) | K71: %RSD | M71: Count | P71: RMS Cent Diff keV | Q71: RMS FWHM | R71: Area Ratio
F72: Mean: | G72: =IF($M$72>0,AVERAGE(G21:G70),"") ->  | J72: =IF($M$72>0,AVERAGE(J21:J70),"") ->  | K72: =IF($M$72>0,AVERAGE(K21:K70),"") ->  | M72: =COUNT(L21:L70) -> 0 | O72: RMS Deviations: | P72: =IF($M$72>0,SQRT(SUMSQ(P21:P70)/P73),"") ->  | Q72: =IF(Q73<>0,SQRT(SUMSQ(Q21:Q70)/Q73),"") ->  | R72: =IF($M$72>0,SQRT(AVERAGE(R21:R70)),"") -> 
F73: Stdev: | G73: =IF($M$72>0,STDEV(G21:G70),"") ->  | J73: =IF($M$72>0,STDEV(J21:J70),"") ->  | K73: =IF($M$72>0,STDEV(K21:K70),"") ->  | O73: Number Items: | P73: =COUNT(L21:L70) -> 0 | Q73: =COUNT(M21:M70) -> 0 | R73: =COUNT(N21:N70) -> 0
F74: %RSD: | G74: =IF($M$72>0,G73/G72,"") ->  | J74: =IF($M$72>0,J73/J72,"") ->  | K74: =IF($M$72>0,K73/K72,"") -> 

Sheet Stats
A1: Assessment of Variable Items
K2: =Assessment!J2 -> 0
B3: Averages: | C3: =AVERAGE(C8:C57) ->  | D3: =AVERAGE(D8:D57) ->  | E3: =AVERAGE(E8:E57) ->  | G3: =AVERAGE(G8:G57) ->  | K3: =Assessment!J3 -> 0 | U3: -3.5 | V3: 0
B4: St. Unc: | C4: =STDEV(C8:C57) ->  | D4: =STDEV(D8:D57) ->  | E4: =STDEV(E8:E57) ->  | F4: =COUNT(F8:F57) -> 0 | J4: Bin | K4: Found | L4: Bin*Found | M4: Fraction | N4: Theoretical | U4: -3.5 | V4: 0.005977006485
B5: RSD% | C5: =C4/C3 ->  | D5: =D4/D3 ->  | E5: =E4/E3 ->  | F5: Peaks | U5: -2.5 | V5: 0.005977006485
I6: =I7-$E$4 ->  | J6: -4 | K6: =FREQUENCY(E8:E56,I6:I15) -> 0 | L6: =K6*J6 -> 0 | M6: =K6/$K$17 ->  | N6: 0.0002292725706 | U6: -2.5 | V6: 0
A7: Item | B7: Expected | C7: Measured | D7: %RSD | E7: Ratio | F7: Diff | G7: Z-score | I7: =I8-$E$4 ->  | J7: -3 | K7: 0 | L7: 0 | M7: =K7/$K$17 ->  | N7: 0.005977006485 | U7: -2.5 | V7: 0.06059754893
A8: =IF(B8<>"",1,"") ->  | B8: =Assessment!G21 ->  | C8: =IF(Assessment!J21<>"",Assessment!J21,"") ->  | D8: =IF(C8<>"",Assessment!K21,"") ->  | E8: =IF(C8<>"",C8/B8,"") ->  | F8: =IF(C8<>"",C8-B8,"") ->  | G8: =IF(C8<>"",(C8-B8)/(C8*D8),"") ->  | I8: =I9-$E$4 ->  | J8: -2 | N8: 0.06059754893 | U8: -1.5 | V8: 0.06059754893
A9: =IF(B9<>"",A8+1,"") ->  | B9: =Assessment!G22 ->  | C9: =IF(Assessment!J22<>"",Assessment!J22,"") ->  | D9: =IF(C9<>"",Assessment!K22,"") ->  | E9: =IF(C9<>"",C9/B9,"") ->  | F9: =IF(C9<>"",C9-B9,"") ->  | G9: =IF(C9<>"",(C9-B9)/(C9*D9),"") ->  | I9: =1-E4/2 ->  | J9: -1 | M9: =K9/$K$17 ->  | N9: 0.2417303038 | U9: -1.5 | V9: 0
B10: =Assessment!G23 ->  | C10: =IF(Assessment!J23<>"",Assessment!J23,"") ->  | D10: =IF(C10<>"",Assessment!K23,"") ->  | I10: =1+E4/2 ->  | J10: 0 | N10: 0.3829249347 | U10: -1.5 | V10: 0.2417303038
B11: =Assessment!G24 ->  | C11: =IF(Assessment!J24<>"",Assessment!J24,"") ->  | D11: =IF(C11<>"",Assessment!K24,"") ->  | I11: =I10+$E$4 ->  | J11: 1 | N11: 0.2417303038 | U11: -0.5 | V11: 0.2417303038
B12: =Assessment!G25 ->  | C12: =IF(Assessment!J25<>"",Assessment!J25,"") ->  | D12: =IF(C12<>"",Assessment!K25,"") ->  | I12: =I11+$E$4 ->  | J12: 2 | N12: 0.06059754893 | U12: -0.5 | V12: 0
B13: =Assessment!G26 ->  | C13: =IF(Assessment!J26<>"",Assessment!J26,"") ->  | D13: =IF(C13<>"",Assessment!K26,"") ->  | I13: =I12+$E$4 ->  | J13: 3 | N13: 0.005977006485 | U13: -0.5 | V13: 0.3829249347
B14: =Assessment!G27 ->  | C14: =IF(Assessment!J27<>"",Assessment!J27,"") ->  | D14: =IF(C14<>"",Assessment!K27,"") ->  | I14: =I13+$E$4 ->  | J14: 4 | N14: 0.0002292725706 | U14: 0.5 | V14: 0.3829249347
B15: =Assessment!G28 ->  | C15: =IF(Assessment!J28<>"",Assessment!J28,"") ->  | D15: =IF(C15<>"",Assessment!K28,"") ->  | I15: =I14+$E$4 ->  | U15: 0.5 | V15: 0
B16: =Assessment!G29 ->  | C16: =IF(Assessment!J29<>"",Assessment!J29,"") ->  | D16: =IF(C16<>"",Assessment!K29,"") ->  | U16: 0.5 | V16: 0.2417303038
B17: =Assessment!G30 ->  | C17: =IF(Assessment!J30<>"",Assessment!J30,"") ->  | D17: =IF(C17<>"",Assessment!K30,"") ->  | J17: Sums: | K17: =SUM(K6:K15) ->  | L17: =SUM(L6:L15)/K17 ->  | M17: =SUM(M6:M15) ->  | U17: 1.5 | V17: 0.2417303038
B18: =Assessment!G31 ->  | C18: =IF(Assessment!J31<>"",Assessment!J31,"") ->  | D18: =IF(C18<>"",Assessment!K31,"") ->  | U18: 1.5 | V18: 0
B19: =Assessment!G32 ->  | C19: =IF(Assessment!J32<>"",Assessment!J32,"") ->  | D19: =IF(C19<>"",Assessment!K32,"") ->  | U19: 1.5 | V19: 0.06059754893
B20: =Assessment!G33 ->  | C20: =IF(Assessment!J33<>"",Assessment!J33,"") ->  | D20: =IF(C20<>"",Assessment!K33,"") ->  | K20: Mean Count Ratio | L20: =AVERAGE(E8:E57) ->  | M20: =CONCATENATE("Mean Count Ratio: ",ROUND(L20,3)," (",TEXT(L23,"0.0%"),")") ->  | U20: 2.5 | V20: 0.06059754893
B21: =Assessment!G34 ->  | C21: =IF(Assessment!J34<>"",Assessment!J34,"") ->  | D21: =IF(C21<>"",Assessment!K34,"") ->  | K21: Uncertainty of Ratio | L21: =STDEV(E8:E57) ->  | U21: 2.5 | V21: 0
B22: =Assessment!G35 ->  | C22: =IF(Assessment!J35<>"",Assessment!J35,"") ->  | D22: =IF(C22<>"",Assessment!K35,"") ->  | E22: =IF(C22<>"",C22/B22,"") ->  | F22: =IF(C22<>"",C22-B22,"") ->  | K22: Significance | L22: =(L20-1)/L21 ->  | M22: =VLOOKUP(ABS(L22),Stats!$J$37:$K$42,2) ->  | U22: 2.5 | V22: 0.005977006485
B23: =Assessment!G36 ->  | C23: =IF(Assessment!J36<>"",Assessment!J36,"") ->  | D23: =IF(C23<>"",Assessment!K36,"") ->  | K23: %RSD of Ratio | L23: =L21/L20 ->  | U23: 3.5 | V23: 0.005977006485
B24: =Assessment!G37 ->  | C24: =IF(Assessment!J37<>"",Assessment!J37,"") ->  | D24: =IF(C24<>"",Assessment!K37,"") ->  | U24: 3.5 | V24: 0
B25: =Assessment!G38 ->  | C25: =IF(Assessment!J38<>"",Assessment!J38,"") ->  | D25: =IF(C25<>"",Assessment!K38,"") ->  | K25: Centroid of Distribution | L25: =L17 -> 
B26: =Assessment!G39 ->  | C26: =IF(Assessment!J39<>"",Assessment!J39,"") ->  | D26: =IF(C26<>"",Assessment!K39,"") ->  | K26: Significance | L26: =(L20-1)/L21 -> 
B27: =Assessment!G40 ->  | C27: =IF(Assessment!J40<>"",Assessment!J40,"") ->  | D27: =IF(C27<>"",Assessment!K40,"") ->  | K27: Number of Peaks | L27: =COUNT(F8:F57) -> 0
B28: =Assessment!G41 ->  | C28: =IF(Assessment!J41<>"",Assessment!J41,"") ->  | D28: =IF(C28<>"",Assessment!K41,"") ->  | K28: Mean z-score | L28: =AVERAGE(G8:G57) -> 
B29: =Assessment!G42 ->  | C29: =IF(Assessment!J42<>"",Assessment!J42,"") ->  | D29: =IF(C29<>"",Assessment!K42,"") -> 
B30: =Assessment!G43 ->  | C30: =IF(Assessment!J43<>"",Assessment!J43,"") ->  | D30: =IF(C30<>"",Assessment!K43,"") -> 
B31: =Assessment!G44 ->  | C31: =IF(Assessment!J44<>"",Assessment!J44,"") ->  | D31: =IF(C31<>"",Assessment!K44,"") ->  | J31: Plot Limits
B32: =Assessment!G45 ->  | C32: =IF(Assessment!J45<>"",Assessment!J45,"") ->  | D32: =IF(C32<>"",Assessment!K45,"") ->  | J32: 0 | K32: 0
B33: =Assessment!G46 ->  | C33: =IF(Assessment!J46<>"",Assessment!J46,"") ->  | D33: =IF(C33<>"",Assessment!K46,"") ->  | J33: 0 | K33: 25
B34: =Assessment!G47 ->  | C34: =IF(Assessment!J47<>"",Assessment!J47,"") ->  | D34: =IF(C34<>"",Assessment!K47,"") ->  | J34: =L25 ->  | K34: 0
B35: =Assessment!G48 ->  | C35: =IF(Assessment!J48<>"",Assessment!J48,"") ->  | D35: =IF(C35<>"",Assessment!K48,"") ->  | J35: =J34 ->  | K35: 25
B36: =Assessment!G49 ->  | C36: =IF(Assessment!J49<>"",Assessment!J49,"") ->  | D36: =IF(C36<>"",Assessment!K49,"") -> 
B37: =Assessment!G50 ->  | C37: =IF(Assessment!J50<>"",Assessment!J50,"") ->  | D37: =IF(C37<>"",Assessment!K50,"") ->  | J37: 0
B38: =Assessment!G51 ->  | C38: =IF(Assessment!J51<>"",Assessment!J51,"") ->  | D38: =IF(C38<>"",Assessment!K51,"") ->  | J38: 1 | K38: May be significant at 84%
B39: =Assessment!G52 ->  | C39: =IF(Assessment!J52<>"",Assessment!J52,"") ->  | D39: =IF(C39<>"",Assessment!K52,"") ->  | J39: 1.282 | K39: Significant at 90%
B40: =Assessment!G53 ->  | C40: =IF(Assessment!J53<>"",Assessment!J53,"") ->  | D40: =IF(C40<>"",Assessment!K53,"") ->  | J40: 1.645 | K40: Significant at 95%
A41: =IF(B41<>"",A40+1,"") ->  | B41: =Assessment!G54 ->  | C41: =IF(Assessment!J54<>"",Assessment!J54,"") ->  | D41: =IF(C41<>"",Assessment!K54,"") ->  | J41: 2.236 | K41: Significant at 99%
B42: =Assessment!G55 ->  | C42: =IF(Assessment!J55<>"",Assessment!J55,"") ->  | D42: =IF(C42<>"",Assessment!K55,"") ->  | J42: 3 | K42: Significant at 99.9%
B43: =Assessment!G56 ->  | C43: =IF(Assessment!J56<>"",Assessment!J56,"") ->  | D43: =IF(C43<>"",Assessment!K56,"") -> 
B44: =Assessment!G57 ->  | C44: =IF(Assessment!J57<>"",Assessment!J57,"") ->  | D44: =IF(C44<>"",Assessment!K57,"") -> 
B45: =Assessment!G58 ->  | C45: =IF(Assessment!J58<>"",Assessment!J58,"") ->  | D45: =IF(C45<>"",Assessment!K58,"") -> 
B46: =Assessment!G59 ->  | C46: =IF(Assessment!J59<>"",Assessment!J59,"") ->  | D46: =IF(C46<>"",Assessment!K59,"") -> 
B47: =Assessment!G60 ->  | C47: =IF(Assessment!J60<>"",Assessment!J60,"") ->  | D47: =IF(C47<>"",Assessment!K60,"") -> 
B48: =Assessment!G61 ->  | C48: =IF(Assessment!J61<>"",Assessment!J61,"") ->  | D48: =IF(C48<>"",Assessment!K61,"") -> 
B49: =Assessment!G62 ->  | C49: =IF(Assessment!J62<>"",Assessment!J62,"") ->  | D49: =IF(C49<>"",Assessment!K62,"") -> 
B50: =Assessment!G63 ->  | C50: =IF(Assessment!J63<>"",Assessment!J63,"") ->  | D50: =IF(C50<>"",Assessment!K63,"") -> 
B51: =Assessment!G64 ->  | C51: =IF(Assessment!J64<>"",Assessment!J64,"") ->  | D51: =IF(C51<>"",Assessment!K64,"") -> 
B52: =Assessment!G65 ->  | C52: =IF(Assessment!J65<>"",Assessment!J65,"") ->  | D52: =IF(C52<>"",Assessment!K65,"") -> 
B53: =Assessment!G66 ->  | C53: =IF(Assessment!J66<>"",Assessment!J66,"") ->  | D53: =IF(C53<>"",Assessment!K66,"") -> 
B54: =Assessment!G67 ->  | C54: =IF(Assessment!J67<>"",Assessment!J67,"") ->  | D54: =IF(C54<>"",Assessment!K67,"") -> 
B55: =Assessment!G68 ->  | C55: =IF(Assessment!J68<>"",Assessment!J68,"") ->  | D55: =IF(C55<>"",Assessment!K68,"") -> 
B56: =Assessment!G69 ->  | C56: =IF(Assessment!J69<>"",Assessment!J69,"") ->  | D56: =IF(C56<>"",Assessment!K69,"") -> 
B57: =Assessment!G70 ->  | C57: =IF(Assessment!J70<>"",Assessment!J70,"") ->  | D57: =IF(C57<>"",Assessment!K70,"") -> 

Sheet Search
A1: Peak Search using Correlation | D1: -50 | AA1: Average Bgd | AB1: BGD width | AC1: Search Backgd | AD1: Product | AE1: Finder | AF1: Critical Limit (cts)
A2: =IF(Control!C15<>"",Control!C14,Control!C31) -> 0 | C2: =NOW() -> 2025-03-17T12:53:42.920 | D2: =NOW() -> 45733.5373 | E2: Peak Index | F2: Centroid keV | G2: Peak Area cts | H2: Area RSD | I2: Centroid Channels | J2: FWHM keV | P2: Area: | Q2: =SUM(Q5:Q23) -> 1
A3: =Control!B7 -> Spectrum Size: | B3: =Control!C7 -> 8192 | C3: Channels | D3: =IF(H3<>"",$D$1,"") ->  | P3: Width (ch) | Q3: Centroid | R3: Std Dev | S3: =P4-2*S4 -> 7
A4: =Control!B8 -> Maximum Energy: | B4: =Control!C8 -> 2428.431512 | C4: =Control!D20 -> keV | D4: =IF(H4<>"",$D$1,"") ->  | P4: =B19 -> 19 | Q4: =P4/2+0.5 -> 10 | R4: 0.9443783008 | S4: =INT(P4/3) -> 6
L5: Peaks Detected: | M5: =B29 -> 0 | P5: 1 | Q5: =IF(P5<>"",IF($B$22=0,S5/$S$3,(_xlfn.NORM.DIST(P5,$Q$4,$R$4,FALSE)*$B$22)),"") -> 0 | S5: =IF(P5<$S$4+1,0,IF(P5<$S$4+$S$3+1,1,IF(P5<$S$4*2+$S$3+1,0,""))) -> 0
A6: =Control!B20 -> Energy Intercept: | B6: =Control!C20 -> -4.090471268 | C6: =B6/B7 -> -13.79366956 | L6: Peaks Identified: | M6: =COUNT(Identify!D2:D998) -> 0 | P6: =IF(P5<$P$4,P5+1,"") -> 2 | Q6: =IF(P6<>"",IF($B$22=0,S6/$S$3,(_xlfn.NORM.DIST(P6,$Q$4,$R$4,FALSE)*$B$22)),"") -> 0 | S6: 0
A7: =Control!B21 -> Energy scale: | B7: =Control!C21 -> 0.2965469956 | L7: Peaks Significant: | M7: =COUNTA(Identify!F3:F999) -> 0 | P7: =IF(P6<$P$4,P6+1,"") -> 3 | Q7: 0 | S7: 0
A8: =Control!B22 -> Energy Quad Factor: | B8: =Control!C22 -> 4.781774976e-08 | L8: Items in Peak List: | M8: =COUNTA(PeakList!A:A)-1 -> 109 | P8: 4 | Q8: 0 | S8: 0
A9: =Control!B23 -> Width Intercept: | B9: =Control!C23 -> 0.763579905 | C9: =B9/B7 -> 2.574903527 | L9: Missed Known Peaks: | M9: =M8-M6 -> 109 | P9: 5 | Q9: 0 | S9: 0
A10: =Control!B24 -> Width scale: | B10: =Control!C24 -> 0.0009132531122 | C10: =B10/B7 -> 0.003079623553 | L10: =Identify!P9 -> Unidentifiable Peaks: | M10: =Identify!Q9 -> 0 | N10: =Identify!R9 -> of which | P10: 6 | Q10: 0 | S10: 0
A11: =Control!B25 -> Width Quad Factor: | B11: =Control!C25 -> -9.431559533e-08 | C11: =B11/B7 -> -3.180460322e-07 | M11: =Identify!Q10 -> 0 | N11: =Identify!R10 -> were SpecMaker peaks | P11: 7 | Q11: 0.1428571429 | S11: 1
A12: =Control!B26 -> Peak Coverage: | B12: 0.995 | M12: =Identify!Q11 -> 0 | N12: =Identify!R11 -> were not significant | P12: 8 | Q12: 0.1428571429 | S12: 1
A13: =Control!B27 -> Full-width: | B13: =NORMSINV((1+B12)/2) -> 2.807033768 | C13: Std. Dev | M13: =Identify!Q12 -> 0 | N13: =Identify!R12 -> might be investigated | P13: 9 | Q13: 0.1428571429 | S13: 1
A14: Peak Width Factor: | B14: =2*B13/2.355 -> 2.383892797 | L14: RMS Energy Diffs | M14: =Identify!$Q$14 -> 0 | N14: keV | P14: 10 | Q14: 0.1428571429 | S14: =IF(P14<$S$4+1,0,IF(P14<$S$4+$S$3+1,1,IF(P14<$S$4*2+$S$3+1,0,""))) -> 1
P15: 11 | Q15: 0.1428571429 | S15: =IF(P15<$S$4+1,0,IF(P15<$S$4+$S$3+1,1,IF(P15<$S$4*2+$S$3+1,0,""))) -> 1
A16: Starting Values for Peak Search ---------------- | L16: Suggestion for Updating Energy Calibration | P16: 12 | Q16: 0.1428571429 | S16: 1
A17: Start Channel: | B17: 52 | C17: Finished | L17: Intercept: | M17: =Identify!V20 -> -4.248054057 | N17: keV | P17: 13 | Q17: 0.1428571429 | S17: 1
A18: =CONCATENATE("End Channel (<=",ROUNDDOWN(B3,0)-25,"):") -> End Channel (<=8167): | B18: 7990 | L18: Gradient: | M18: =Identify!V21 -> 0.296740072 | N18: keV/ch | P18: 14 | Q18: 0 | S18: 0
A19: Search Width: | B19: 19 | C19: channels | L19: Quad: | M19: =Identify!V22 -> 2.021528153e-08 | N19: keV/ch^2 | P19: 15 | Q19: 0 | S19: 0
A20: Change width Channel: | B20: 8121 | P20: 16 | Q20: 0 | S20: 0
A21: Background Sensitivity: | B21: 1.5 | C21: Std. Devs | P21: 17 | Q21: 0 | S21: 0
A22: Search Sensitivity: | B22: 0 | C22: =IF(B22=0,"Hat Function",CONCATENATE("Area: ",ROUND(Q2,3))) -> Hat Function | P22: 18 | Q22: 0 | S22: 0
A23: Background Search Width: | B23: 5 | C23: channels | P23: 19 | Q23: 0 | S23: 0
A24: Peak Background Width: | B24: 5 | C24: channels
A25: Average Background Mode: | B25: Yes
A26: Type of Background: | B26: =VLOOKUP(Control!C12,Control!A45:B49,2) -> Spectrum | C26: =IF(Control!C12<3,IF(Control!C9=Control!C10,"Flat","Sloping"),"") ->  | S26: =IF(P26<$S$4+1,0,IF(P26<$S$4+$S$3+1,1,IF(P26<$S$4*2+$S$3+1,0,""))) -> 
A27: Report < Upper Limit: | B27: Yes | Q27: =IF(P27<>"",IF($B$22=0,S27/$S$3,(_xlfn.NORM.DIST(P27,$Q$4,$R$4,FALSE)*$B$22)),"") ->  | S27: =IF(P27<$S$4+1,0,IF(P27<$S$4+$S$3+1,1,IF(P27<$S$4*2+$S$3+1,0,""))) -> 
A28: Results of Peak Search-------------------------------------------
A29: Peaks Found: | B29: =COUNT(F3:F996) -> 0 | P29: Select Search Width (B19) to see its search Function
A30: Peaks Expected: | B30: =IF(C30="Done",Assessment!K7,"") -> 0 | C30: Done
A31: Valid Peaks Found: | B31: =IF($C$30="Done",Assessment!K8,"") -> 0
A32: Missing Actual Peaks: | B32: =IF($C$30="Done",B30-B31,"") -> 0
A33: Unidentified Peaks: | B33: =M10 -> 0 | C33: =IF(H9>2,M87,"") -> 
A34: RMS Centroid Difference: | B34: =Assessment!F15 ->  | C34: Channels
B35: =Assessment!G15 ->  | C35: keV
A36: Mean Peak Area Ratio: | B36: =IF($C$30="Done",Stats!L20,"") ->  | C36: =IF($C$41="Done",Stats!L23,"") -> 
A37: Centroid of Distribution: | B37: =IF($C$30="Done",Stats!L17,"") ->  | C37: Std.Devs
A38: Number FWHMs Measured: | B38: =IF($C$30="Done",Assessment!Q73,"") -> 0
A39: RMS FWHM Difference: | B39: =IF($C$30="Done",Assessment!G16,"") ->  | C39: keV
A40: Mean Area Z-score: | B40: =IF($C$30="Done",Assessment!P72,"") -> 
A42: Tolerance: | B42: 2 | C42: channels
A44: Testing information
A45: Test Recording? | B45: Yes
A46: Position Adjust: | B46: 0 | C46: keV
A47: Position Scale: | C47: ct/ch
AA58: 1666.666667 | AB58: 6 | AC58: 1727.90391 | AD58: 2327 | AE58: 599.0960898
AA59: 929 | AB59: 2 | AC59: 974.719252 | AD59: 1563 | AE59: 588.280748 | AF59: 166
AA60: 929 | AB60: 0 | AC60: 974.719252 | AD60: 1118 | AE60: 143.280748
AA61: 929 | AB61: 0 | AC61: 974.719252 | AD61: 1021.5 | AE61: 46.78074804
AA62: 929 | AB62: 0 | AC62: 974.719252 | AD62: 1061.5 | AE62: 86.78074804
AA63: 929 | AB63: 0 | AC63: 974.719252 | AD63: 1115.5 | AE63: 140.780748
AA64: 929 | AB64: 0 | AC64: 974.719252 | AD64: 1289 | AE64: 314.280748
AA65: 929 | AB65: 0 | AC65: 974.719252 | AD65: 1668 | AE65: 693.280748
AA66: 929 | AB66: 0 | AC66: 974.719252 | AD66: 2327 | AE66: 1352.280748
AA67: 929 | AB67: 0 | AC67: 974.719252 | AD67: 3376.5 | AE67: 2401.780748
D68: =IF(H68<>"",$D$1,"") ->  | AA68: 929 | AB68: 0 | AC68: 974.719252 | AD68: 4163 | AE68: 3188.280748 | AF68: 166
AA69: 929 | AB69: 0 | AC69: 974.719252 | AD69: 3709.5 | AE69: 2734.780748
AA70: 929 | AB70: 0 | AC70: 974.719252 | AD70: 2523 | AE70: 1548.280748
AA71: 929 | AB71: 0 | AC71: 974.719252 | AD71: 1627.5 | AE71: 652.780748
AA72: 929 | AB72: 0 | AC72: 974.719252 | AD72: 1165 | AE72: 190.280748
AA73: 929 | AB73: 0 | AC73: 974.719252 | AD73: 985.5 | AE73: 10.78074804
AA74: 929 | AB74: 1 | AC74: 974.719252 | AD74: 915 | AE74: -59.71925196
AA75: 915 | AB75: 2 | AC75: 960.3734504 | AD75: 893.5 | AE75: -66.87345039
AA76: 912.6666667 | AB76: 3 | AC76: 957.9822269 | AD76: 1037 | AE76: 79.01777309
AA77: 912.6666667 | AB77: 3 | AC77: 957.9822269 | AD77: 1375 | AE77: 417.0177731
AA78: 912.6666667 | AB78: 3 | AC78: 957.9822269 | AD78: 1539.5 | AE78: 581.5177731 | AF78: 165
AA79: 912.6666667 | AB79: 3 | AC79: 957.9822269 | AD79: 1373.5 | AE79: 415.5177731
AA80: 893.5 | AB80: 2 | AC80: 938.3372055 | AD80: 1163 | AE80: 224.6627945
AA81: 893.5 | AB81: 1 | AC81: 938.3372055 | AD81: 1022.5 | AE81: 84.16279447
AA82: 893.5 | AB82: 0 | AC82: 938.3372055 | AD82: 889 | AE82: -49.33720553
AA83: 893.5 | AB83: 1 | AC83: 938.3372055 | AD83: 759 | AE83: -179.3372055
AA84: 759 | AB84: 2 | AC84: 800.3249319 | AD84: 704 | AE84: -96.32493194
AA85: 738.3333333 | AB85: 3 | AC85: 779.091768 | AD85: 689 | AE85: -90.09176804
AA86: 696.3333333 | AB86: 3 | AC86: 735.9155263 | AD86: 677.5 | AE86: -58.4155263
AA87: 690.75 | AB87: 4 | AC87: 730.1731848 | AD87: 680 | AE87: -50.1731848
AA88: 689.8 | AB88: 5 | AC88: 729.1960658 | AD88: 657.5 | AE88: -71.69606579
AA89: 679.6666667 | AB89: 6 | AC89: 718.7722929 | AD89: 631 | AE89: -87.77229286
AA90: 666.6666667 | AB90: 6 | AC90: 705.3965001 | AD90: 628.5 | AE90: -76.89650013
AA91: 654.5 | AB91: 6 | AC91: 692.8747964 | AD91: 610 | AE91: -82.87479642
AA92: 640.3333333 | AB92: 6 | AC92: 678.2905461 | AD92: 613 | AE92: -65.29054609
AA93: 633 | AB93: 6 | AC93: 670.7392369 | AD93: 670 | AE93: -0.7392368762
AA94: 622.4 | AB94: 5 | AC94: 659.8219187 | AD94: 756 | AE94: 96.17808129
AA95: 620.75 | AB95: 4 | AC95: 658.1222825 | AD95: 822.5 | AE95: 164.3777175 | AF95: 136
AA96: 616.6666667 | AB96: 3 | AC96: 653.9158277 | AD96: 784.5 | AE96: 130.5841723
AA97: 613 | AB97: 2 | AC97: 650.1382552 | AD97: 691.5 | AE97: 41.36174479
AA98: 643.5 | AB98: 2 | AC98: 681.5509527 | AD98: 650 | AE98: -31.55095268
AA99: 650 | AB99: 2 | AC99: 688.2426464 | AD99: 706.5 | AE99: 18.25735365
AA100: 650 | AB100: 2 | AC100: 688.2426464 | AD100: 826.5 | AE100: 138.2573536 | AF100: 139
AA101: 650 | AB101: 2 | AC101: 688.2426464 | AD101: 817.5 | AE101: 129.2573536
AA102: 650 | AB102: 2 | AC102: 688.2426464 | AD102: 692 | AE102: 3.757353648
AA103: 644 | AB103: 3 | AC103: 682.0657326 | AD103: 625.5 | AE103: -56.56573262
AA104: 631.3333333 | AB104: 3 | AC104: 669.0228544 | AD104: 608 | AE104: -61.02285442
AA105: 616 | AB105: 3 | AC105: 653.2290209 | AD105: 622.5 | AE105: -30.72902094
AA106: 624 | AB106: 4 | AC106: 661.469988 | AD106: 646.5 | AE106: -14.96998799
AA107: 628.2 | AB107: 5 | AC107: 665.7958774 | AD107: 620 | AE107: -45.79587743
AA108: 622.6666667 | AB108: 6 | AC108: 660.0966012 | AD108: 568.5 | AE108: -91.59660121
AA109: 607.6666667 | AB109: 6 | AC109: 644.6430105 | AD109: 574.5 | AE109: -70.14301046
AA110: 605.6666667 | AB110: 6 | AC110: 642.5821106 | AD110: 580.5 | AE110: -62.08211059
AA111: 598.5 | AB111: 6 | AC111: 635.1963895 | AD111: 554.5 | AE111: -80.69638947
AA112: 583 | AB112: 6 | AC112: 619.2180894 | AD112: 552.5 | AE112: -66.7180894
AA113: 567.1666667 | AB113: 6 | AC113: 602.8895585 | AD113: 535.5 | AE113: -67.38955849
AA114: 554.8333333 | AB114: 6 | AC114: 590.1656839 | AD114: 544.5 | AE114: -45.66568395
AA115: 549.6 | AB115: 5 | AC115: 584.7653238 | AD115: 556 | AE115: -28.76532383
AA116: 548.6666667 | AB116: 6 | AC116: 583.8021188 | AD116: 550.5 | AE116: -33.30211885
AA117: 549.1666667 | AB117: 6 | AC117: 584.3181247 | AD117: 553.5 | AE117: -30.81812467
AA118: 548.3333333 | AB118: 6 | AC118: 583.4581109 | AD118: 538 | AE118: -45.45811091
AA119: 544.3333333 | AB119: 6 | AC119: 579.3297617 | AD119: 532 | AE119: -47.32976172
AA120: 547.1666667 | AB120: 6 | AC120: 582.2540576 | AD120: 537 | AE120: -45.25405756
AA121: 541.8333333 | AB121: 6 | AC121: 576.7493039 | AD121: 532.5 | AE121: -44.24930389
AA122: 539.3333333 | AB122: 6 | AC122: 574.1686602 | AD122: 520 | AE122: -54.16866023
AA123: 531.6666667 | AB123: 6 | AC123: 566.2535139 | AD123: 529.5 | AE123: -36.75351388
AA124: 531.3333333 | AB124: 6 | AC124: 565.9093366 | AD124: 557.5 | AE124: -8.409336573
AA125: 538.1666667 | AB125: 6 | AC125: 572.9642959 | AD125: 541.5 | AE125: -31.4642959
AA126: 534.5 | AB126: 6 | AC126: 569.1788841 | AD126: 529.5 | AE126: -39.67888407
AA127: 535.6666667 | AB127: 6 | AC127: 570.3833773 | AD127: 529 | AE127: -41.38337734
AA128: 533.3333333 | AB128: 6 | AC128: 567.9743495 | AD128: 523.5 | AE128: -44.47434948
AA129: 536.8333333 | AB129: 6 | AC129: 571.5878294 | AD129: 528.5 | AE129: -43.08782945
AA130: 533 | AB130: 6 | AC130: 567.6301891 | AD130: 524.5 | AE130: -43.13018914
AA131: 525.8333333 | AB131: 6 | AC131: 560.2299175 | AD131: 525 | AE131: -35.22991747
D132: =IF(H132<>"",$D$1,"") ->  | AA132: 527.5 | AB132: 6 | AC132: 561.9510522 | AD132: 522.5 | AE132: -39.45105223
AA133: 523.5 | AB133: 6 | AC133: 557.8201836 | AD133: 516 | AE133: -41.82018357
AA134: 523.1666667 | AB134: 6 | AC134: 557.475922 | AD134: 510.5 | AE134: -46.97592198
AA135: 519.1666667 | AB135: 6 | AC135: 553.3445104 | AD135: 508 | AE135: -45.34451037
AA136: 516.3333333 | AB136: 6 | AC136: 550.4177873 | AD136: 519 | AE136: -31.41778727
AA137: 517.3333333 | AB137: 6 | AC137: 551.4507776 | AD137: 511 | AE137: -40.45077755
AA138: 511.6666667 | AB138: 6 | AC138: 545.5967418 | AD138: 515 | AE138: -30.59674182
AA139: 514.8333333 | AB139: 6 | AC139: 548.8682419 | AD139: 541.5 | AE139: -7.368241883
AA140: 520.1666667 | AB140: 6 | AC140: 554.3774106 | AD140: 539.5 | AE140: -14.87741059
AA141: 524.5 | AB141: 6 | AC141: 558.8529475 | AD141: 517 | AE141: -41.85294747
AA142: 523.1666667 | AB142: 6 | AC142: 557.475922 | AD142: 502 | AE142: -55.47592198
AA143: 518.8333333 | AB143: 6 | AC143: 553.0002033 | AD143: 521 | AE143: -32.00020325
AA144: 526.5 | AB144: 6 | AC144: 560.9183817 | AD144: 520.5 | AE144: -40.41838172
AA145: 520.6666667 | AB145: 6 | AC145: 554.8938488 | AD145: 499 | AE145: -55.89384885
AA146: 512.3333333 | AB146: 6 | AC146: 546.2855056 | AD146: 515.5 | AE146: -30.78550558
AA147: 512.6666667 | AB147: 6 | AC147: 546.6298821 | AD147: 534.5 | AE147: -12.12988206
AA148: 518.1666667 | AB148: 6 | AC148: 552.3115784 | AD148: 566 | AE148: 13.68842156 | AF148: 124
AA149: 521 | AB149: 5 | AC149: 555.2381366 | AD149: 561.5 | AE149: 6.261863368
AA150: 518.2 | AB150: 5 | AC150: 552.34601 | AD150: 521.5 | AE150: -30.84601002
AA151: 521.4 | AB151: 5 | AC151: 555.6512773 | AD151: 520.5 | AE151: -35.15127735
AA152: 526.8 | AB152: 5 | AC152: 561.2281861 | AD152: 517.5 | AE152: -43.72818613
AA153: 522.2 | AB153: 5 | AC153: 556.4775437 | AD153: 523.5 | AE153: -32.97754367
AA154: 522.4 | AB154: 5 | AC154: 556.6841071 | AD154: 541.5 | AE154: -15.18410711
AA155: 526.8333333 | AB155: 6 | AC155: 561.2626087 | AD155: 553 | AE155: -8.262608667
AA156: 532.3333333 | AB156: 6 | AC156: 566.9418583 | AD156: 538 | AE156: -28.94185829
AA157: 532.3333333 | AB157: 6 | AC157: 566.9418583 | AD157: 512 | AE157: -54.94185829
AA158: 529.5 | AB158: 6 | AC158: 564.0163005 | AD158: 529 | AE158: -35.0163005
AA159: 536.1666667 | AB159: 6 | AC159: 570.8995761 | AD159: 528.5 | AE159: -42.39957613
AA160: 531.1666667 | AB160: 6 | AC160: 565.7372466 | AD160: 512 | AE160: -53.73724664
AA161: 526.3333333 | AB161: 6 | AC161: 560.7462669 | AD161: 535 | AE161: -25.74626695
AA162: 525.1666667 | AB162: 6 | AC162: 559.5414394 | AD162: 528.5 | AE162: -31.04143939
AA163: 523.1666667 | AB163: 6 | AC163: 557.475922 | AD163: 517 | AE163: -40.47592198
AA164: 526.8333333 | AB164: 6 | AC164: 561.2626087 | AD164: 528 | AE164: -33.26260867
AA165: 522.8333333 | AB165: 6 | AC165: 557.1316569 | AD165: 532 | AE165: -25.13165691
AA166: 528 | AB166: 6 | AC166: 562.4673759 | AD166: 504.5 | AE166: -57.96737588
AA167: 520.3333333 | AB167: 6 | AC167: 554.5495576 | AD167: 507 | AE167: -47.54955756
AA168: 518.6666667 | AB168: 6 | AC168: 552.8280484 | AD168: 584 | AE168: 31.17195163
AA169: 521 | AB169: 5 | AC169: 555.2381366 | AD169: 775.5 | AE169: 220.2618634
AA170: 519.5 | AB170: 4 | AC170: 553.688814 | AD170: 1255.5 | AE170: 701.811186
AA171: 516.3333333 | AB171: 3 | AC171: 550.4177873 | AD171: 1495 | AE171: 944.5822127 | AF171: 129
AA172: 507 | AB172: 2 | AC172: 540.7749907 | AD172: 1182.5 | AE172: 641.7250093
AA173: 507 | AB173: 1 | AC173: 540.7749907 | AD173: 769.5 | AE173: 228.7250093
AA174: 507 | AB174: 0 | AC174: 540.7749907 | AD174: 534.5 | AE174: -6.274990748
AA175: 507 | AB175: 1 | AC175: 540.7749907 | AD175: 488 | AE175: -52.77499075
AA176: 488 | AB176: 2 | AC176: 521.1360831 | AD176: 496 | AE176: -25.13608305
AA177: 495 | AB177: 3 | AC177: 528.3728932 | AD177: 519.5 | AE177: -8.872893192
AA178: 503.75 | AB178: 4 | AC178: 537.4165635 | AD178: 496.5 | AE178: -40.91656353
AA179: 495.6 | AB179: 5 | AC179: 528.9931131 | AD179: 500 | AE179: -28.99311306
AA180: 502.5 | AB180: 6 | AC180: 536.1247677 | AD180: 569 | AE180: 32.87523234
AA181: 504.4 | AB181: 5 | AC181: 538.0882769 | AD181: 605 | AE181: 66.91172311 | AF181: 128
AA182: 509.75 | AB182: 4 | AC182: 543.6164657 | AD182: 567 | AE182: 23.38353429
AA183: 513.75 | AB183: 4 | AC183: 547.7490809 | AD183: 547.5 | AE183: -0.2490808699
AA184: 508.3333333 | AB184: 3 | AC184: 542.1527065 | AD184: 561 | AE184: 18.84729352 | AF184: 128
AA185: 538 | AB185: 3 | AC185: 572.7922405 | AD185: 561 | AE185: -11.79224051
AA186: 554.25 | AB186: 4 | AC186: 589.5637721 | AD186: 561 | AE186: -28.5637721
AA187: 553.8 | AB187: 5 | AC187: 589.0994334 | AD187: 540 | AE187: -49.09943342
AA188: 549.5 | AB188: 6 | AC188: 584.6621245 | AD188: 546 | AE188: -38.66212451
AA189: 556 | AB189: 6 | AC189: 591.3694784 | AD189: 567.5 | AE189: -23.86947837
AA190: 556.1666667 | AB190: 6 | AC190: 591.5414458 | AD190: 567.5 | AE190: -24.04144582
AA191: 558.1666667 | AB191: 6 | AC191: 593.6049934 | AD191: 560.5 | AE191: -33.10499338
AA192: 556 | AB192: 6 | AC192: 591.3694784 | AD192: 618.5 | AE192: 27.13052163
AA193: 556.8 | AB193: 5 | AC193: 592.1949149 | AD193: 715.5 | AE193: 123.3050851
AA194: 564 | AB194: 4 | AC194: 599.6230263 | AD194: 716 | AE194: 116.3769737 | AF194: 135
AA195: 564 | AB195: 3 | AC195: 599.6230263 | AD195: 648 | AE195: 48.37697374
D196: =IF(H196<>"",$D$1,"") ->  | AA196: 560.5 | AB196: 2 | AC196: 596.0123218 | AD196: 572.5 | AE196: -23.51232181
AA197: 543.5 | AB197: 2 | AC197: 578.4696297 | AD197: 559 | AE197: -19.46962968
AA198: 559 | AB198: 2 | AC198: 594.4647713 | AD198: 580.5 | AE198: -13.96477125
AA199: 563.6666667 | AB199: 3 | AC199: 599.2791645 | AD199: 576.5 | AE199: -22.77916447
AA200: 567.75 | AB200: 4 | AC200: 603.4912577 | AD200: 557 | AE200: -46.49125767
AA201: 570 | AB201: 6 | AC201: 605.8120092 | AD201: 552.5 | AE201: -53.31200916
AA202: 562.6666667 | AB202: 6 | AC202: 598.2475604 | AD202: 571 | AE202: -27.24756042
AA203: 569.5 | AB203: 6 | AC203: 605.2962987 | AD203: 578 | AE203: -27.29629869
AA204: 569 | AB204: 6 | AC204: 604.7805813 | AD204: 587 | AE204: -17.78058133
AA205: 571.6666667 | AB205: 6 | AC205: 607.5309943 | AD205: 584 | AE205: -23.53099435
AA206: 571.5 | AB206: 6 | AC206: 607.3590993 | AD206: 573.5 | AE206: -33.85909926
AA207: 577.1666667 | AB207: 6 | AC207: 613.2031066 | AD207: 581.5 | AE207: -31.70310656
AA208: 581.1666667 | AB208: 6 | AC208: 617.3277645 | AD208: 605.5 | AE208: -11.82776455
AA209: 588.6666667 | AB209: 6 | AC209: 625.0603474 | AD209: 605.5 | AE209: -19.56034744
AA210: 590.3333333 | AB210: 6 | AC210: 626.7784976 | AD210: 591.5 | AE210: -35.27849762
AA211: 590.1666667 | AB211: 6 | AC211: 626.6066859 | AD211: 590.5 | AE211: -36.10668588
AA212: 592.5 | AB212: 6 | AC212: 629.0119843 | AD212: 596 | AE212: -33.01198433
... 2038 more rows

Sheet Identify
A1: Peak Energy keV | B1: Pgamma% | C1: Origin of Peak | D1: Found Peak (keV) | E1: Peak Area counts | F1: Area Uncerty | G1: Peak position Ch | H1: FWHM keV | I1: Diff keV | K1: Unident. Peak (keV) | L1: Peak Area counts | M1: Area Uncerty | N1: Peak position Ch | V1: All the working relating to the recalibrations are performed to the right of this line. Do not use any of the cells. | AC1: n | AD1: =COUNT(AE2:AE999) -> 80 | AE1: x=ch | AF1: y=keV | AG1: x^2 | AH1: y^2 | AI1: xy | AJ1: x^3 | AK1: x^4 | AL1: x2y | AM1: n | AN1: =COUNT(AO2:AO1000) -> 14 | AO1: x=keV | AP1: y=FWHM | AQ1: x^2 | AR1: y^2 | AS1: xy | AT1: x^3 | AU1: x^4 | AV1: x2y | AW1: (xy)^2
AC2: Sum x | AD2: =SUM(AE2:AE1000) -> 175763.4826 | AE2: 95.77081877 | AF2: 25.19 | AG2: 9172.049727 | AH2: 634.5361 | AI2: 2412.466925 | AJ2: 878414.7121 | AK2: 84126496.19 | AL2: 231043.9326 | AN2: =SUM(AO2:AO999) -> 11895.21196 | AO2: 185.7486717 | AP2: 1.029042837 | AQ2: 34502.56904 | AR2: 1.05892916 | AS2: 191.1433401 | AT2: 6408806.371 | AU2: 1190427271 | AV2: 35504.62153 | AW2: =AO2^2*AP2^2 -> 36535.77647
AC3: Sum y | AD3: =SUM(AF2:AF1000) -> 51830.02466 | AE3: 100.9093356 | AF3: 25.19 | AG3: 10182.69402 | AH3: 634.5361 | AI3: 2541.906165 | AJ3: 1027528.888 | AK3: 103687257.5 | AL3: 256502.0623 | AN3: =SUM(AP2:AP999) -> 20.75403849 | AO3: 269.6412238 | AP3: 1.323500512 | AQ3: 72706.38956 | AR3: 1.751653605 | AS3: 356.8702977 | AT3: 19604639.86 | AU3: 5286219083 | AV3: 96226.94379 | AW3: =AO3^2*AP3^2 -> 127356.4093
P4: Match Tolerance: | Q4: 1 | R4: keV | AC4: Sum x^2 | AD4: =SUM(AG2:AG1000) -> 682676217.3 | AE4: 171.4506279 | AF4: 46.54 | AG4: 29395.3178 | AH4: 2165.9716 | AI4: 7979.312221 | AJ4: 5039845.693 | AK4: 864084708.4 | AL4: 1368058.09 | AN4: =SUM(AQ2:AQ999) -> 13660404.5 | AO4: 338.3120626 | AP4: 1.061564108 | AQ4: 114455.0517 | AR4: 1.126918355 | AS4: 359.1399428 | AT4: 38721524.61 | AU4: 1.309995886e+10 | AV4: 121501.3748 | AW4: 128981.4985
P5: Peaks Detected: | Q5: =Search!B29 -> 0 | U5: 0 | AC5: Sum y^2 | AD5: =SUM(AH2:AH1000) -> 59710337.35 | AE5: 194.0901223 | AF5: 53.335 | AG5: 37670.97559 | AH5: 2844.622225 | AI5: 10351.79668 | AJ5: 7311564.262 | AK5: 1419102402 | AL5: 2009181.483 | AN5: =SUM(AR2:AR999) -> 32.0270696 | AO5: 462 | AP5: 1.212925757 | AQ5: 213444 | AR5: 1.471188893 | AS5: 560.3716998 | AT5: 98611128 | AU5: 45558341136 | AV5: 258891.7253 | AW5: 314016.442
P6: Peaks Identified: | Q6: =COUNT(Identify!G2:G999) -> 0 | U6: =U9*0.25 -> 2048 | AC6: Sum xy | AD6: =SUM(AI2:AI1000) -> 201896937.5 | AE6: 215.7623375 | AF6: 59.54 | AG6: 46553.38627 | AH6: 3545.0116 | AI6: 12846.48957 | AJ6: 10044467.44 | AK6: 2167217773 | AL6: 2771788.618 | AN6: =SUM(AS2:AS999) -> 19258.8398 | AO6: 510.7 | AP6: 1.607061925 | AQ6: 260814.49 | AR6: 2.58264803 | AS6: 820.7265249 | AT6: 133197960 | AU6: 6.802419819e+10 | AV6: 419145.0363 | AW6: 673592.0287
P7: Peaks were Significant: | Q7: =COUNTA(Identify!F2:F999) -> 0 | R7: =CONCATENATE(Q6-Q7, " being below the Critical Limit") -> 0 being below the Critical Limit | U7: =U9*0.5 -> 4096 | AC7: Sum x^3 | AD7: =SUM(AJ2:AJ1000) -> 3.274766329e+12 | AE7: 227.9764622 | AF7: 63.28 | AG7: 51973.26731 | AH7: 4004.3584 | AI7: 14426.35053 | AJ7: 11848681.61 | AK7: 2701220515 | AL7: 3288868.355 | AN7: =SUM(AT2:AT999) -> 1.856648091e+10 | AO7: 583.19 | AP7: 1.132729445 | AQ7: 340110.5761 | AR7: 1.283075995 | AS7: 660.596485 | AT7: 198349086.9 | AU7: 1.15675204e+11 | AV7: 385253.2641 | AW7: 436387.716
P8: Items in Peak List: | Q8: =COUNTA(PeakList!A:A)-1 -> 109 | R8: =CONCATENATE("of which ",Q8-Q6," were missed") -> of which 109 were missed | U8: =U9*0.75 -> 6144 | AC8: Sum x^4 | AD8: =SUM(AK2:AK300) -> 1.756749378e+16 | AE8: 260.3856202 | AF8: 72.81 | AG8: 67800.67122 | AH8: 5301.2961 | AI8: 18958.67701 | AJ8: 17654319.83 | AK8: 4596931019 | AL8: 4936566.872 | AN8: =SUM(AU2:AU999) -> 2.764527031e+13 | AO8: 609.31 | AP8: 1.322806589 | AQ8: 371258.6761 | AR8: 1.749817272 | AS8: 805.9992829 | AT8: 226211623.9 | AU8: 1.378330046e+11 | AV8: 491103.4231 | AW8: 649634.844
P9: Unidentifiable Peaks: | Q9: =COUNTA(Identify!K:K)-1 -> 0 | R9: of which | U9: =Search!B3 -> 8192 | V9: Linear Quad | W9: Energy Cal | AC9: Sum x^2y | AD9: =SUM(AL2:AL1000) -> 9.692094827e+11 | AE9: 267.170022 | AF9: 74.91 | AG9: 71379.82064 | AH9: 5611.5081 | AI9: 20013.70635 | AJ9: 19070548.25 | AK9: 5095078794 | AL9: 5347062.364 | AN9: =SUM(AV2:AV999) -> 23254278.27 | AO9: 794.95 | AP9: 1.906675328 | AQ9: 631945.5025 | AR9: 3.635410807 | AS9: 1515.711552 | AT9: 502365077.2 | AU9: 3.993551181e+11 | AV9: 1204914.898 | AW9: 2297381.509
Q10: =Assessment!K8 -> 0 | R10: were SpecMaker peaks | U10: =$Q$18+$Q$19*U5+$Q$20*U5^2 -> -4.090471268 | V10: F(Quad) | W10: =AD1-2 -> 78 | AC10: diffs | AD10: 100 | AE10: 274.7626853 | AF10: 77.11 | AG10: 75494.53324 | AH10: 5945.9521 | AI10: 21186.95066 | AJ10: 20743080.68 | AK10: 5699424549 | AL10: 5821383.458 | AN10: =SUM(AW2:AW999) -> 40338471.87 | AO10: 911.2 | AP10: 1.559511035 | AQ10: 830285.44 | AR10: 2.432074668 | AS10: 1421.026455 | AT10: 756556092.9 | AU10: 6.893739119e+11 | AV10: 1294839.306 | AW10: 2019316.186
Q11: =COUNTA(L:L)-COUNTA(M:M) -> 0 | R11: were not significant | U11: =$Q$18+$Q$19*U6+$Q$20*U6^2 -> 603.438338 | V11: Matrix 1 | AE11: 282.2699758 | AF11: 79.29 | AG11: 79676.33923 | AH11: 6286.9041 | AI11: 22381.18638 | AJ11: 22490238.34 | AK11: 6348319033 | AL11: 6317536.937 | AO11: 1120.29 | AP11: 1.538858115 | AQ11: 1255049.684 | AR11: 2.368084297 | AS11: 1723.967357 | AT11: 1406019611 | AU11: 1.57514971e+12 | AV11: 1931343.391 | AW11: 2972063.449
Q12: =Q9-Q10-Q11 -> 0 | R12: might be investigated | U12: 1211.368272 | V12: =AD1 -> 80 | W12: =AD2 -> 175763.4826 | X12: =AD4 -> 682676217.3 | AE12: 287.9649685 | AF12: 81.23 | AG12: 82923.82307 | AH12: 6598.3129 | AI12: 23391.39439 | AJ12: 23879156.1 | AK12: 6876360433 | AL12: 6735902.148 | AO12: 1238.11 | AP12: 1.693656844 | AQ12: 1532916.372 | AR12: 2.868473506 | AS12: 2096.933475 | AT12: 1897919089 | AU12: 2.349832604e+12 | AV12: 2596234.305 | AW12: 4397130
P13: Spurious Detections: | Q13: =Q5-Q6-Q9 -> 0 | R13: were not considered real. | U13: 1819.69933 | V13: =AD2 -> 175763.4826 | W13: =AD4 -> 682676217.3 | X13: =AD7 -> 3.274766329e+12 | AE13: 299.3964135 | AF13: 84.94 | AG13: 89638.21244 | AH13: 7214.8036 | AI13: 25430.73137 | AJ13: 26837359.32 | AK13: 8035009129 | AL13: 7613869.764 | AO13: 1377.67 | AP13: 1.720132598 | AQ13: 1897974.629 | AR13: 2.958856155 | AS13: 2369.775077 | AT13: 2614782707 | AU13: 3.602307692e+12 | AV13: 3264768.03 | AW13: 5615833.913
P14: RMS Energy diffs: | Q14: =SQRT(SUMSQ(I2:I87))/COUNTA(I:I)/Control!C21 -> 0 | R14: keV | U14: 2428.431512 | V14: =AD4 -> 682676217.3 | W14: =AD7 -> 3.274766329e+12 | X14: =AD8 -> 1.756749378e+16 | AE14: 308.7979151 | AF14: 87.32709788 | AG14: 95356.15237 | AH14: 7626.022024 | AI14: 26966.42576 | AJ14: 29445781.05 | AK14: 9092795796 | AL14: 8327176.052 | AO14: 1729.6 | AP14: 1.605029773 | AQ14: 2991516.16 | AR14: 2.576120572 | AS14: 2776.059495 | AT14: 5174126350 | AU14: 8.949168936e+12 | AV14: 4801472.503 | AW14: 7706506.322
Q15: =Q14/Search!B7 -> 0 | R15: channels | V15: Inverse of Matrix 1 | Y15: Matrix 2 | Z15: Results matrix | AE15: 317.7571083 | AF15: 89.93791446 | AG15: 100969.5799 | AH15: 8088.828457 | AI15: 28578.41162 | AJ15: 32083801.72 | AK15: 1.019485606e+10 | AL15: 9080993.436 | AO15: 1764.49 | AP15: 2.040543625 | AQ15: 3113424.96 | AR15: 4.163818284 | AS15: 3600.51882 | AT15: 5493607208 | AU15: 9.693414982e+12 | AV15: 6353079.453 | AW15: 12963735.77
P16: No. FWHMS: | Q16: =COUNTA(H2:H999) -> 0 | V16: =MINVERSE(V12:X14) -> 0.04785718066 | W16: -3.214021032e-05 | X16: 4.131535232e-09 | Y16: =AD3 -> 51830.02466 | Z16: =MMULT(V16:X18,Y16:Y18) -> -4.248054057 | AA16: -4.248054057 | AB16: -4.248054057 | AE16: 327.0343994 | AF16: 92.58 | AG16: 106951.4984 | AH16: 8571.0564 | AI16: 30276.8447 | AJ16: 34976819.05 | AK16: 1.143862301e+10 | AL16: 9901569.723 | AW16: 0
P17: Suggestion for Updated Energy Calibration | V17: -3.214021032e-05 | W17: 3.543049743e-08 | X17: -5.355644008e-12 | Y17: =AD6 -> 201896937.5 | Z17: 0.296740072 | AA17: 0.296740072 | AB17: 0.296740072 | AE17: 369.3924447 | AF17: 105.6 | AG17: 136450.7782 | AH17: 11151.36 | AI17: 39007.84216 | AJ17: 50403886.52 | AK17: 1.861881486e+10 | AL17: 14409202.17
P18: Intercept: | Q18: =Control!C20 -> -4.090471268 | R18: =V20 -> -4.248054057 | S18: keV | U18: 0 | V18: 4.131535232e-09 | W18: -5.355644008e-12 | X18: 8.947196464e-16 | Y18: =AD9 -> 9.692094827e+11 | Z18: 2.021528153e-08 | AA18: 2.021528153e-08 | AB18: 2.021528153e-08 | AE18: 381.514166 | AF18: 109.16 | AG18: 145553.0589 | AH18: 11915.9056 | AI18: 41646.08636 | AJ18: 55530553.87 | AK18: 2.118569295e+10 | AL18: 15888571.91
P19: Gradient: | Q19: =Control!C21 -> 0.2965469956 | R19: =V21 -> 0.296740072 | S19: ke|V/ch | U19: =U22*0.25 -> 607.107878 | V19: Result | W19: Std.Unc | X19: %RSD | AE19: 394.6056221 | AF19: 112.81 | AG19: 155713.597 | AH19: 12726.0961 | AI19: 44515.46023 | AJ19: 61445460.82 | AK19: 2.424672429e+10 | AL19: 17566050.88
P20: Quad: | Q20: =Control!C22 -> 4.781774976e-08 | R20: =V22 -> 2.021528153e-08 | U20: =U22*0.5 -> 1214.215756 | V20: =Z16 -> -4.248054057 | W20: =V16/W23 ->  | X20: =W20/V20 ->  | Y20: =-INT(LOG10(W20)) ->  | Z20: =ROUND(V20,Y20) ->  | AA20: =ROUNDUP(W20,Y20) ->  | AB20: =MAX(LEN(Z20),LEN(AA20)) ->  | AE20: 422.6175783 | AF20: 121.994 | AG20: 178605.6175 | AH20: 14882.53604 | AI20: 51556.80885 | AJ20: 75481873.55 | AK20: 3.189996661e+10 | AL20: 21788813.7
U21: =U22*0.75 -> 1821.323634 | V21: =Z17 -> 0.296740072 | W21: =W17/W23 ->  | X21: =W21/V21 ->  | Y21: =-INT(LOG10(W21))+$P$32 ->  | Z21: =ROUND(V21,Y21) ->  | AA21: =ROUNDUP(W21,Y21) ->  | AB21: =MAX(LEN(Z21),LEN(AA21)) ->  | AE21: 446 | AF21: 129.06 | AG21: 198916 | AH21: 16656.4836 | AI21: 57560.76 | AJ21: 88716536 | AK21: 39567575056 | AL21: 25672098.96
P22: Suggestion for Updated Width Calibration | U22: =Search!B4 -> 2428.431512 | V22: =Z18 -> 2.021528153e-08 | W22: =X18/W23 ->  | X22: =W22/V22 ->  | Y22: =-INT(LOG10(W22))+$P$32 ->  | Z22: =ROUND(V22,Y22) ->  | AA22: =ROUNDUP(W22,Y22) ->  | AB22: =MAX(LEN(Z22),LEN(AA22)) ->  | AE22: 449.7920484 | AF22: 129.06 | AG22: 202312.8868 | AH22: 16656.4836 | AI22: 58050.16177 | AJ22: 90998727.77 | AK22: 4.093050416e+10 | AL22: 26110501.17
P23: Intercept: | Q23: =Control!C23 -> 0.763579905 | R23: =V37 -> 0.9140312583 | S23: keV | U23: =$Q$23+$Q$24*U18+$Q$25*U18^2 -> 0.763579905 | V23: R/n-m: | AE23: 481.5991868 | AF23: 139.68 | AG23: 231937.7768 | AH23: 19510.5024 | AI23: 67269.77442 | AJ23: 111701044.7 | AK23: 5.379513229e+10 | AL23: 32397068.66
P24: Gradient: | Q24: =Control!C24 -> 0.0009132531122 | R24: =V38 -> 0.0009690348717 | S24: keV/keV | U24: =$Q$23+$Q$24*U19+$Q$25*U19^2 -> 1.283260224 | AE24: 499.3083764 | AF24: 143.76 | AG24: 249308.8547 | AH24: 20666.9376 | AI24: 71780.57219 | AJ24: 124481999.5 | AK24: 6.215490505e+10 | AL24: 35840640.96
P25: Quad: | Q25: =Control!C25 -> -9.431559533e-08 | R25: =V39 -> -2.612861369e-07 | U25: 1.733414864 | AE25: 565.3012769 | AF25: 163.33 | AG25: 319565.5337 | AH25: 26676.6889 | AI25: 92330.65755 | AJ25: 180650804.2 | AK25: 1.021221303e+11 | AL25: 52194638.61
U26: 2.114043824 | V26: Linear Quad | W26: Width Cal | AE26: 640.7792173 | AF26: 185.7486717 | AG26: 410598.0053 | AH26: 34502.56904 | AI26: 119023.8885 | AJ26: 263102668.5 | AK26: 1.68590722e+11 | AL26: 76268034.1
P27: Do not update Width Calibration if there are any bad points. | U27: 2.425147104 | V27: F(Quad) | W27: =AN1-2 -> 12 | AE27: 683.3919788 | AF27: 198.39 | AG27: 467024.5967 | AH27: 39358.5921 | AI27: 135578.1347 | AJ27: 319160863.3 | AK27: 2.18111974e+11 | AL27: 92653009.75
P28: Those can be deleted manually from the Search list. | V28: Matrix 1 | AE28: 706.3928597 | AF28: 205.31 | AG28: 498990.8722 | AH28: 42152.1961 | AI28: 145029.518 | AJ28: 352483589.2 | AK28: 2.489918906e+11 | AL28: 102447816
V29: =AN1 -> 14 | W29: =AN2 -> 11895.21196 | X29: =AN4 -> 13660404.5 | AE29: 719.3957359 | AF29: 209.26 | AG29: 517530.2248 | AH29: 43789.7476 | AI29: 150540.7517 | AJ29: 372309036.9 | AK29: 2.678375335e+11 | AL29: 108298374.8
R30: calibration | V30: =AN2 -> 11895.21196 | W30: =AN4 -> 13660404.5 | X30: =AN7 -> 1.856648091e+10 | AE30: 818.7046358 | AF30: 238.63 | AG30: 670277.2807 | AH30: 56944.2769 | AI30: 195367.4872 | AJ30: 548759117 | AK30: 4.49271633e+11 | AL30: 159948267.5
R31: calibration after Update | V31: =AN4 -> 13660404.5 | W31: =AN7 -> 1.856648091e+10 | X31: =AN8 -> 2.764527031e+13 | AE31: 828.9227905 | AF31: 240.89 | AG31: 687112.9926 | AH31: 58027.9921 | AI31: 199679.211 | AJ31: 569563619.2 | AK31: 4.721242646e+11 | AL31: 165518648.8
V32: Inverse of Matrix 1 | Y32: Matrix 2 | Z32: Results matrix | AE32: 924.6888911 | AF32: 269.6412238 | AG32: 855049.5453 | AH32: 72706.38956 | AI32: 249334.2442 | AJ32: 790654815.9 | AK32: 7.311097249e+11 | AL32: 230556605.8
V33: =MINVERSE(V29:X31) -> 0.9662626991 | W33: -0.002207104812 | X33: 1.004823961e-06 | Y33: =AN3 -> 20.75403849 | Z33: =MMULT(V33:X35,Y33:Y35) -> 0.9140312583 | AA33: 0.9140312583 | AB33: 0.9140312583 | AE33: 948.675418 | AF33: 277.37 | AG33: 899985.0488 | AH33: 76934.1169 | AI33: 263134.1007 | AJ33: 853793692.4 | AK33: 8.09973088e+11 | AL33: 249628853
V34: -0.002207104812 | W34: 5.880876243e-06 | X34: -2.858978447e-09 | Y34: =AN6 -> 19258.8398 | Z34: 0.0009690348717 | AA34: 0.0009690348717 | AB34: 0.0009690348717 | AE34: 1009.286337 | AF34: 295.22 | AG34: 1018658.91 | AH34: 87154.8484 | AI34: 297961.5123 | AJ34: 1028118519 | AK34: 1.037665974e+12 | AL34: 300728483.3
V35: 1.004823961e-06 | W35: -2.858978447e-09 | X35: 1.459738557e-12 | Y35: =AN9 -> 23254278.27 | Z35: -2.612861369e-07 | AA35: -2.612861369e-07 | AB35: -2.612861369e-07 | AE35: 1025.409449 | AF35: 300.0532522 | AG35: 1051464.538 | AH35: 90031.95418 | AI35: 307677.44 | AJ35: 1078181672 | AK35: 1.105577674e+12 | AL35: 315495354.1
V36: Result | W36: Std.Unc | X36: %RSD | AE36: 1119.632121 | AF36: 328 | AG36: 1253576.087 | AH36: 107584 | AI36: 367239.3358 | AJ36: 1403544053 | AK36: 1.571453006e+12 | AL36: 411172956.5
V37: =Z33 -> 0.9140312583 | W37: =V33/W40 ->  | X37: =W37/V37 ->  | Y37: =-INT(LOG10(W37)) ->  | Z37: =ROUND(V37,Y37) ->  | AA37: =ROUNDUP(W37,Y37) ->  | AB37: =MAX(LEN(Z37),LEN(AA37)) ->  | AE37: 1154.283199 | AF37: 338.3120626 | AG37: 1332369.704 | AH37: 114455.0517 | AI37: 390507.9299 | AJ37: 1537931964 | AK37: 1.775209027e+12 | AL37: 450756742.6
V38: =Z34 -> 0.0009690348717 | W38: =W34/W40 ->  | X38: =W38/V38 ->  | Y38: =-INT(LOG10(W38))+$P$32 ->  | Z38: =ROUND(V38,Y38) ->  | AA38: =ROUNDUP(W38,Y38) ->  | AB38: =MAX(LEN(Z38),LEN(AA38)) ->  | AE38: 1200.12033 | AF38: 351.6984663 | AG38: 1440288.807 | AH38: 123691.8112 | AI38: 422080.4795 | AJ38: 1728519878 | AK38: 2.074431847e+12 | AL38: 506547364.3
V39: =Z35 -> -2.612861369e-07 | W39: =X35/W40 ->  | X39: =W39/V39 ->  | Y39: =-INT(LOG10(W39))+$P$32 ->  | Z39: =ROUND(V39,Y39) ->  | AA39: =ROUNDUP(W39,Y39) ->  | AB39: =MAX(LEN(Z39),LEN(AA39)) ->  | AE39: 1393.725009 | AF39: 409.46 | AG39: 1942469.401 | AH39: 167657.4916 | AI39: 570674.6423 | AJ39: 2707268184 | AK39: 3.773187376e+12 | AL39: 795363521.1
V40: R/n-m: | AE40: 1573.679245 | AF40: 462 | AG40: 2476466.367 | AH40: 213444 | AI40: 727039.8112 | AJ40: 3897163722 | AK40: 6.132885665e+12 | AL40: 1144127461
AE41: 1735.634345 | AF41: 510.7 | AG41: 3012426.579 | AH41: 260814.49 | AI41: 886388.4599 | AJ41: 5228471032 | AK41: 9.074713894e+12 | AL41: 1538446254
AE42: 1895.947326 | AF42: 558.46 | AG42: 3594616.263 | AH42: 311877.5716 | AI42: 1058810.744 | AJ42: 6815203092 | AK42: 1.292126608e+13 | AL42: 2007449398
AE43: 1933.074843 | AF43: 569.7 | AG43: 3736778.35 | AH43: 324558.09 | AI43: 1101272.738 | AJ43: 7223472222 | AK43: 1.396351243e+13 | AL43: 2128842626
AE44: 1979.206659 | AF44: 583.19 | AG44: 3917258.999 | AH44: 340110.5761 | AI44: 1154253.531 | AJ44: 7753065095 | AK44: 1.534491806e+13 | AL44: 2284506275
AE45: 2021.791049 | AF45: 595.85 | AG45: 4087639.047 | AH45: 355037.2225 | AI45: 1204684.197 | AJ45: 8264352039 | AK45: 1.670879298e+13 | AL45: 2435619726
AE46: 2067.083915 | AF46: 609.31 | AG46: 4272835.911 | AH46: 371258.6761 | AI46: 1259494.9 | AJ46: 8832310383 | AK46: 1.825712672e+13 | AL46: 2603481649
AE47: 2243.462146 | AF47: 661.66 | AG47: 5033122.399 | AH47: 437793.9556 | AI47: 1484409.163 | AJ47: 1.129161958e+10 | AK47: 2.533232108e+13 | AL47: 3330215766
AE48: 2272.312574 | AF48: 669.62 | AG48: 5163404.434 | AH48: 448390.9444 | AI48: 1521585.946 | AJ48: 1.173286882e+10 | AK48: 2.666074535e+13 | AL48: 3457518877
AE49: 2464.232004 | AF49: 727.2569674 | AG49: 6072439.371 | AH49: 528902.6967 | AI49: 1792129.894 | AJ49: 1.496389944e+10 | AK49: 3.687451991e+13 | AL49: 4416223841
AE50: 2559.881697 | AF50: 755.31 | AG50: 6552994.3 | AH50: 570493.1961 | AI50: 1933504.244 | AJ50: 1.677489017e+10 | AK50: 4.29417343e+13 | AL50: 4949542125
AE51: 2602.952627 | AF51: 768.36 | AG51: 6775362.378 | AH51: 590377.0896 | AI51: 2000004.68 | AJ51: 1.76359473e+10 | AK51: 4.590553535e+13 | AL51: 5205917437
AE52: 2692.51653 | AF52: 794.95 | AG52: 7249645.263 | AH52: 631945.5025 | AI52: 2140416.015 | AJ52: 1.95197897e+10 | AK52: 5.255735644e+13 | AL52: 5763105502
AE53: 2719.772955 | AF53: 803.06 | AG53: 7397164.926 | AH53: 644905.3636 | AI53: 2184140.869 | AJ53: 2.011860911e+10 | AK53: 5.471804895e+13 | AL53: 5940367266
AE54: 2818.833992 | AF54: 832.01 | AG54: 7945825.073 | AH54: 692240.6401 | AI54: 2345298.069 | AJ54: 2.239796181e+10 | AK54: 6.313613608e+13 | AL54: 6611005919
AE55: 2827.665885 | AF55: 835.71 | AG55: 7995694.356 | AH55: 698411.2041 | AI55: 2363108.657 | AJ55: 2.260915216e+10 | AK55: 6.393112823e+13 | AL55: 6682081730
AE56: 2841.409709 | AF56: 839.04 | AG56: 8073609.136 | AH56: 703988.1216 | AI56: 2384056.403 | AJ56: 2.294043139e+10 | AK56: 6.518316449e+13 | AL56: 6774081010
AE57: 2913.568567 | AF57: 860.56 | AG57: 8488881.792 | AH57: 740563.5136 | AI57: 2507300.566 | AJ57: 2.473293915e+10 | AK57: 7.206111408e+13 | AL57: 7305192115
AE58: 3084.225147 | AF58: 911.2 | AG58: 9512444.755 | AH58: 830285.44 | AI58: 2810345.954 | AJ58: 2.933852132e+10 | AK58: 9.048660521e+13 | AL58: 8667739661
AE59: 3161.179823 | AF59: 934.06 | AG59: 9993057.874 | AH59: 872468.0836 | AI59: 2952731.626 | AJ59: 3.158985292e+10 | AK59: 9.986120568e+13 | AL59: 9334115638
AE60: 3264.916177 | AF60: 964.77 | AG60: 10659677.64 | AH60: 930781.1529 | AI60: 3149893.18 | AJ60: 3.480295396e+10 | AK60: 1.136287274e+14 | AL60: 1.02841372e+10
AE61: 3278.745672 | AF61: 968.97 | AG61: 10750173.18 | AH61: 938902.8609 | AI61: 3177006.194 | AJ61: 3.524708378e+10 | AK61: 1.155662234e+14 | AL61: 1.041659531e+10
AE62: 3386.059866 | AF62: 1001.03 | AG62: 11465401.42 | AH62: 1002061.061 | AI62: 3389547.508 | AJ62: 3.882253558e+10 | AK62: 1.314554296e+14 | AL62: 1.147721078e+10
AE63: 3390.0876 | AF63: 1001.03 | AG63: 11492693.94 | AH63: 1002061.061 | AI63: 3393579.391 | AJ63: 3.896123922e+10 | AK63: 1.32082014e+14 | AL63: 1.150453141e+10
AE64: 3788.562935 | AF64: 1120.29 | AG64: 14353209.11 | AH64: 1255049.684 | AI64: 4244289.17 | AJ64: 5.437803604e+10 | AK64: 2.060146118e+14 | AL64: 1.607975664e+10
AE65: 3906.321461 | AF65: 1155.19 | AG65: 15259347.35 | AH65: 1334463.936 | AI65: 4512543.488 | AJ65: 5.960791604e+10 | AK65: 2.328476816e+14 | AL65: 1.762744547e+10
AE66: 3965.886268 | AF66: 1173.23 | AG66: 15728253.89 | AH66: 1376468.633 | AI66: 4652896.746 | AJ66: 6.237646613e+10 | AK66: 2.473779705e+14 | AL66: 1.845285931e+10
AE67: 4185.224162 | AF67: 1238.11 | AG67: 17516101.28 | AH67: 1532916.372 | AI67: 5181767.887 | AJ67: 7.330881031e+10 | AK67: 3.068138042e+14 | AL67: 2.168686016e+10
AE68: 4502.160929 | AF68: 1332.49 | AG68: 20269453.03 | AH68: 1775529.6 | AI68: 5999084.416 | AJ68: 9.125633949e+10 | AK68: 4.108507262e+14 | AL68: 2.700884347e+10
AE69: 4656.100509 | AF69: 1377.67 | AG69: 21679271.95 | AH69: 1897974.629 | AI69: 6414569.988 | AJ69: 1.009408691e+11 | AK69: 4.699908321e+14 | AL69: 2.986688258e+10
AE70: 4757.103415 | AF70: 1407.98 | AG70: 22630032.9 | AH70: 1982407.68 | AI70: 6697906.467 | AJ70: 1.076534068e+11 | AK70: 5.121183893e+14 | AL70: 3.186263373e+10
AE71: 4905.101631 | AF71: 1452.6 | AG71: 24060022.01 | AH71: 2110046.76 | AI71: 7125150.629 | AJ71: 1.180168532e+11 | AK71: 5.788846591e+14 | AL71: 3.494958797e+10
AE72: 4935.656231 | AF72: 1460.82 | AG72: 24360702.43 | AH72: 2133995.072 | AI72: 7210105.336 | AJ72: 1.202360528e+11 | AK72: 5.93443823e+14 | AL72: 3.558660133e+10
AE73: 5054.244974 | AF73: 1495.8 | AG73: 25545392.25 | AH73: 2237417.64 | AI73: 7560139.631 | AJ73: 1.291126704e+11 | AK73: 6.525670653e+14 | AL73: 3.821079773e+10
AE74: 5098.657645 | AF74: 1509.19 | AG74: 25996309.78 | AH74: 2277654.456 | AI74: 7694843.132 | AJ74: 1.325462836e+11 | AK74: 6.758081223e+14 | AL74: 3.923337076e+10
AE75: 5364.937793 | AF75: 1588.2 | AG75: 28782557.53 | AH75: 2522379.24 | AI75: 8520594.203 | AJ75: 1.544166307e+11 | AK75: 8.284356177e+14 | AL75: 4.571245786e+10
AE76: 5473.805593 | AF76: 1620.74 | AG76: 29962547.67 | AH76: 2626798.148 | AI76: 8871615.676 | AJ76: 1.64009161e+11 | AK76: 8.977542627e+14 | AL76: 4.856149951e+10
AE77: 5840.70053 | AF77: 1729.6 | AG77: 34113782.68 | AH77: 2991516.16 | AI77: 10102075.64 | AJ77: 1.992483886e+11 | AK77: 1.163750169e+15 | AL77: 5.900319852e+10
AE78: 5958.736767 | AF78: 1764.49 | AG78: 35506543.86 | AH78: 3113424.96 | AI78: 10514131.44 | AJ78: 2.115741483e+11 | AK78: 1.260714657e+15 | AL78: 6.265094157e+10
AE79: 6237.976824 | AF79: 1847.42 | AG79: 38912354.86 | AH79: 3412960.656 | AI79: 11524163.14 | AJ79: 2.427343678e+11 | AK79: 1514171360704656 | AL79: 7.188746261e+10
AE80: 7149.657121 | AF80: 2118.54 | AG80: 51117596.95 | AH80: 4488211.732 | AI80: 15146834.6 | AJ80: 3.654732911e+11 | AK80: 2613008718354161 | AL80: 1.082946739e+11
AE81: 7439.369975 | AF81: 2204.21 | AG81: 55344225.62 | AH81: 4858541.724 | AI81: 16397933.69 | AJ81: 4.117261703e+11 | AK81: 3.062983309e+15 | AL81: 1.219902955e+11

Sheet Plots
F4: 0 | G4: 8192 | H4: X
F5: 0 | G5: 0 | H5: Y
AD47: 10039.5
AD48: 10039.5
AD49: 10039.5
AD50: 10039.5
AD51: 10039.5
AD52: 10039.5
AD53: 10039.5
AD54: 10039.5
AD55: 10039.5
AD56: 10039.5
AD57: 10039.5
AD58: 1666.666667
AD59: 929
AD60: 929
AD61: 929
AD62: 929
AD63: 929
AD64: 929
AD65: 929
AD66: 929
AD67: 929
AD68: 929
AD69: 929
AD70: 929
AD71: 929
AD72: 929
AD73: 929
AD74: 929
AD75: 915
AD76: 912.6666667
AD77: 912.6666667
AD78: 912.6666667
AD79: 912.6666667
AD80: 893.5
AD81: 893.5
AD82: 893.5
AD83: 893.5
AD84: 759
AD85: 738.3333333
AD86: 696.3333333
AD87: 690.75
AD88: 689.8
AD89: 679.6666667
AD90: 666.6666667
AD91: 654.5
AD92: 640.3333333
AD93: 633
AD94: 622.4
AD95: 620.75
AD96: 616.6666667
AD97: 613
AD98: 643.5
AD99: 650
AD100: 650
AD101: 650
AD102: 650
AD103: 644
AD104: 631.3333333
AD105: 616
AD106: 624
AD107: 628.2
AD108: 622.6666667
AD109: 607.6666667
AD110: 605.6666667
AD111: 598.5
AD112: 583
AD113: 567.1666667
AD114: 554.8333333
AD115: 549.6
AD116: 548.6666667
AD117: 549.1666667
AD118: 548.3333333
AD119: 544.3333333
AD120: 547.1666667
AD121: 541.8333333
AD122: 539.3333333
AD123: 531.6666667
AD124: 531.3333333
AD125: 538.1666667
AD126: 534.5
AD127: 535.6666667
AD128: 533.3333333
AD129: 536.8333333
AD130: 533
AD131: 525.8333333
AD132: 527.5
AD133: 523.5
AD134: 523.1666667
AD135: 519.1666667
AD136: 516.3333333
AD137: 517.3333333
AD138: 511.6666667
AD139: 514.8333333
AD140: 520.1666667
AD141: 524.5
AD142: 523.1666667
AD143: 518.8333333
AD144: 526.5
AD145: 520.6666667
AD146: 512.3333333
AD147: 512.6666667
AD148: 518.1666667
AD149: 521
AD150: 518.2
AD151: 521.4
AD152: 526.8
AD153: 522.2
AD154: 522.4
AD155: 526.8333333
AD156: 532.3333333
AD157: 532.3333333
AD158: 529.5
AD159: 536.1666667
AD160: 531.1666667
AD161: 526.3333333
AD162: 525.1666667
AD163: 523.1666667
AD164: 526.8333333
AD165: 522.8333333
AD166: 528
AD167: 520.3333333
AD168: 518.6666667
AD169: 521
AD170: 519.5
AD171: 516.3333333
AD172: 507
AD173: 507
AD174: 507
AD175: 507
AD176: 488
AD177: 495
AD178: 503.75
AD179: 495.6
AD180: 502.5
AD181: 504.4
AD182: 509.75
AD183: 513.75
AD184: 508.3333333
AD185: 538
AD186: 554.25
AD187: 553.8
AD188: 549.5
AD189: 556
AD190: 556.1666667
AD191: 558.1666667
AD192: 556
AD193: 556.8
AD194: 564
AD195: 564
AD196: 560.5
AD197: 543.5
AD198: 559
AD199: 563.6666667
AD200: 567.75
AD201: 570
AD202: 562.6666667
AD203: 569.5
AD204: 569
AD205: 571.6666667
AD206: 571.5
AD207: 577.1666667
AD208: 581.1666667
AD209: 588.6666667
AD210: 590.3333333
AD211: 590.1666667
AD212: 592.5
AD213: 597.6666667
AD214: 598.2
AD215: 593.75
AD216: 593.3333333
AD217: 596
AD218: 596
AD219: 596
AD220: 596
AD221: 632.5
AD222: 649.8333333
AD223: 651.5
AD224: 646.5
AD225: 648.6
AD226: 648.5
AD227: 655
AD228: 644
AD229: 644
AD230: 644
AD231: 644
AD232: 644
AD233: 647.5
AD234: 656
AD235: 657.5
AD236: 666.2
AD237: 670.3333333
AD238: 675.5
AD239: 684
AD240: 695.4
AD241: 704.8333333
AD242: 704.1666667
AD243: 693.8333333
AD244: 685.5
... 2006 more rows

Sheet Plot by keV

Sheet PeakList
A1: Energy (keV | B1: Pgamma % | C1: =COUNT(A:A) -> 109
A2: 23.1 | B2: 70.6 | C2: 22.98 CdKa2 (24.5%)+23.17CdKa1(46.1%) | F2: List of Gamma-Rays most likely to be detected in Background spectra. Entries for U and Th daughters are not complete.
A3: 25.19 | B3: 70.4 | C3: 25.04 SnKa2(24.70%+ 25.27SnKa(45.7%)
A4: 26.21 | B4: 9.67 | C4: 26.1CdKb1(7.69%)+26.64KdB2(1.98%)
A5: 28.74 | B5: 10.18 | C5: 28.64SnKb1(7.99%+29.11SnKb2(2.19% | F5: Entries that are created by prompt gamma or
A6: 46.54 | B6: 4.25 | C6: 210Pb in lead shielding | F6: other cosmic events cannot be given an emission probability
A7: 53.335 | B7: 1.06 | C7: 214Pb + 53.44 74m7Ge10.34) | F7: but are credited with a value of 0.01%, just to fill space
A8: 59.54 | B8: 0.3578 | C8: 125I or 214Am source nearby
A9: 63.28 | B9: 0.48 | C9: 234Th | F9: Most of the entries are from Appendix D in various variations
A10: 68.75 | B10: 0.01 | C10: 73*Ge | F10: of Practical Gamma-Ray Spectrometry. However, some entries
A11: 72.81 | B11: 0.277 | C11: PbKa2 | F11: have been added from other sources. They are credited with 1% emission probability
A12: 74.91 | B12: 73.9 | C12: 74.82BiKa2(74.82%)+74.97PbKa1(46.2)
A13: 77.11 | B13: 46.2 | C13: BiKa1 | F13: Where two, or more, peaks are within 1 keV of each other, they have been replaced
A14: 79.29 | B14: 46.1 | C14: PoKa1 | F14: by a single peak of energy based on the individual Pgammas, with an effective Pgamma being the sum.
A15: 81.23 | B15: 0.9 | C15: 231Th
A16: 84.94 | B16: 10.7 | C16: PbKb1
A17: 87.32709788 | B17: 14.61 | C17: 10.7 BiKb1 + 3.81 PbKb2
A18: 89.93791446 | B18: 32.03 | C18: 89.96 ThKa2 +3.93
A19: 92.58 | B19: 5.58 | C19: 234Th
A20: 93.35 | B20: 45.4 | C20: ThKa1
A21: 105.6 | B21: 10.7 | C21: ThKb1
A22: 109.16 | B22: 1.54 | C22: 235U
A23: 112.81 | B23: 0.28 | C23: 234Th
A24: 121.994 | B24: 29.602 | C24: 223Ra or 152Eu Contamination
A25: 129.06 | B25: 2.42 | C25: 228Ac
A26: 139.68 | B26: 39 | C26: 75mGe n,γ n,2n
A27: 143.76 | B27: 10.96 | C27: 235U
A28: 159.7 | B28: 10.33 | C28: 77mGe
A29: 163.33 | B29: 5.08 | C29: 235U
A30: 174.95 | B30: 0.01 | C30: 71mGe n,γ
A31: 185.7486717 | B31: 60.755 | C31: 226Ra 3.555 or 235U 57.2
A32: 198.39 | B32: 0.01 | C32: 71mGe n,γ
A33: 205.31 | B33: 5.01 | C33: 235U
A34: 209.26 | B34: 3.89 | C34: 228Ac
A35: 238.63 | B35: 43.6 | C35: 212Pb
A36: 240.89 | B36: 4.12 | C36: 224Ra
A37: 242 | B37: 7.268 | C37: 214Pb
A38: 269.6412238 | B38: 17.16 | C38: 228Ac 3.46 or 223Ra 13.7
A39: 277.37 | B39: 2.37 | C39: 208Tl or 64*Cu n,γ n,2n and prompt γ
A40: 295.22 | B40: 18.5 | C40: 214Pb
A41: 300.0532522 | B41: 5.65 | C41: 227Th 2.16 or 231Pa 2.47 or 212Pb 3.18
A42: 328 | B42: 2.95 | C42: 228Ac
A43: 336.24 | B43: 45.9 | C43: 115mCd/115mIn activation
A44: 338.3120626 | B44: 14.06 | C44: 228Ac 11.27 or 223Ra 2.79
A45: 351.6984663 | B45: 48.51 | C45: 214Pb 35.6 or 211Bi 12.91
A46: 409.46 | B46: 1.92 | C46: 228Ac
A47: 416.86 | B47: 27.7 | C47: 116m In
A48: 447.6 | B48: 0.01 | C48: 7Be cosmic
A49: 462 | B49: 0.213 | C49: 214Pb
A50: 463 | B50: 4.4 | C50: 228Ac
A51: 477.6 | B51: 10.44 | C51: 7Be cosmic generation
A52: 510.7 | B52: 6.29 | C52: 208Tl
A53: 511 | B53: 0.01 | C53: Annihilation
A54: 527.9 | B54: 27.5 | C54: 115Cd n,γ activation
A55: 558.46 | B55: 0.01 | C55: 114*Cd n,γ and prompt γ
A56: 569.7 | B56: 97.87 | C56: 207m Pb n-n'
A57: 570.82 | B57: 0.182 | C57: 228Ac
A58: 579.2 | B58: 0.01 | C58: 207*Pb n,n' and prompt γ
A59: 583.19 | B59: 30.6 | C59: 208Tl
A60: 595.85 | B60: 0.01 | C60: 74*Ge n,n' broad asym peak
A61: 609.31 | B61: 45.49 | C61: 214Bi
A62: 661.66 | B62: 84.99 | C62: 137Cs Env. Contam
A63: 669.62 | B63: 0.01 | C63: 63*Cu n,n' prompt γ
A64: 689.6 | B64: 0.01 | C64: 72*Ge n,n' broad asym peak
A65: 727.2569674 | B65: 7.98 | C65: 212Bi 6.74 or 228Ac 0.62
A66: 755.31 | B66: 1 | C66: 228Ac
A67: 768.36 | B67: 4.891 | C67: 214Bi
A68: 794.95 | B68: 4.25 | C68: 228Ac
A69: 803.06 | B69: 0.01 | C69: 206*Pb n,n' and prompt γ
A70: 806.17 | B70: 1.262 | C70: 214Bi
A71: 832.01 | B71: 3.52 | C71: 211Pb
A72: 835.71 | B72: 1.61 | C72: 228Ac
A73: 839.04 | B73: 0.587 | C73: 214Pb
A74: 843.76 | B74: 71.8 | C74: 27Mg activation of encapsulation
A75: 846.77 | B75: 0.01 | C75: 56*Fe n,n' and prompt γ
A76: 860.56 | B76: 4.48 | C76: 208Tl
A77: 911.2 | B77: 25.8 | C77: 228Ac
A78: 934.06 | B78: 3.096 | C78: 214Bi
A79: 962.06 | B79: 0.01 | C79: 63*Cu n,n' and prompt γ
A80: 964.77 | B80: 4.99 | C80: 228Ac
A81: 968.97 | B81: 15.8 | C81: 228Ac
A82: 1001.03 | B82: 1.021 | C82: 234mPa
A83: 1014.44 | B83: 28 | C83: 27Mg
A84: 1063.66 | B84: 88.5 | C84: 207mPb
A85: 1097.3 | B85: 56.2 | C85: ll6In activation of In seal
A86: 1115.56 | B86: 0.01 | C86: 65*Cu n,n' and prompt γ
A87: 1120.29 | B87: 14.907 | C87: 214Bi
A88: 1155.19 | B88: 1.635 | C88: 214Bi
A89: 1173.23 | B89: 99.85 | C89: 60Co Activation
A90: 1238.11 | B90: 5.827 | C90: 214Bi
A91: 1293.54 | B91: 84.4 | C91: 116In
A92: 1332.49 | B92: 99.98 | C92: 60Co activation
A93: 1377.67 | B93: 3.967 | C93: 214Bi
A94: 1407.98 | B94: 2.389 | C94: 214Bi
A95: 1452.6 | B95: 1 | C95: 234Pa
A96: 1459.14 | B96: 0.83 | C96: 228Ac
A97: 1460.82 | B97: 10.66 | C97: 40K
A98: 1495.8 | B98: 1 | C98: 228Ac
A99: 1509.19 | B99: 1 | C99: 214Bi
A100: 1588.2 | B100: 3.22 | C100: 228Ac
A101: 1620.74 | B101: 1.51 | C101: 212Bi
A102: 1630.63 | B102: 1.51 | C102: 228Ac
A103: 1661.28 | B103: 1 | C103: 214Bi
A104: 1729.6 | B104: 2.843 | C104: 214Bi
A105: 1764.49 | B105: 15.28 | C105: 214Bi
A106: 1847.42 | B106: 2.023 | C106: 214Bi
A107: 2118.54 | B107: 1 | C107: 214Bi
A108: 2204.21 | B108: 4.913 | C108: 214Bi
A109: 2224.57 | B109: 0.01 | C109: 2*H activation of hydrogen
A110: 2614.51 | B110: 35.85 | C110: 208Tl
